Department Family,Entity,Date,Expense Type,Expense Area,Supplier,SME,Transaction Number,Amount,Description,Expenditure Type
HM Land Registry,HM Land Registry,03/05/2017,Data Network Lines,IS Service Delivery,British Telecommunications Plc,Large,1180178,"6,986.20",Data Network Lines,Administration
HM Land Registry,HM Land Registry,03/05/2017,Telephone Costs,IS Service Delivery,British Telecommunications Plc,Large,1180178,"120,652.09",Telephone Costs,Administration
HM Land Registry,HM Land Registry,23/05/2017,Computer Equipment Consumables,IS Service Delivery,Canon (UK) Ltd,Large,1180439,"28,911.19",Computer Equipment Consumables,Administration
HM Land Registry,HM Land Registry,16/05/2017,Facilities - Core Fee,Birkenhead Office,Carillion Services Ltd,Large,1181556,"5,458.63",Facilities - Core Fee,Administration
HM Land Registry,HM Land Registry,16/05/2017,FM Ext Helpdesk,Birkenhead Office,Carillion Services Ltd,Large,1181556,482.94,Facilities External Helpdesk,Administration
HM Land Registry,HM Land Registry,16/05/2017,FM Managed Services,Birkenhead Office,Carillion Services Ltd,Large,1181556,"5,842.99",Facilities Managed Services,Administration
HM Land Registry,HM Land Registry,16/05/2017,Grounds Maintenance,Birkenhead Office,Carillion Services Ltd,Large,1181556,330.30,Grounds Maintenance,Administration
HM Land Registry,HM Land Registry,16/05/2017,Office Cleaning Expenses,Birkenhead Office,Carillion Services Ltd,Large,1181556,"4,934.84",Office Cleaning Expenses,Administration
HM Land Registry,HM Land Registry,16/05/2017,Pest Control,Birkenhead Office,Carillion Services Ltd,Large,1181556,37.74,Pest Control,Administration
HM Land Registry,HM Land Registry,16/05/2017,Security Expenses,Birkenhead Office,Carillion Services Ltd,Large,1181556,"2,851.70",Security Expenses,Administration
HM Land Registry,HM Land Registry,16/05/2017,Vending Machine Consumables & Repairs,Birkenhead Office,Carillion Services Ltd,Large,1181556,"1,100.55",Vending Machine Consumables & Repairs,Administration
HM Land Registry,HM Land Registry,16/05/2017,Waste Disposal,Birkenhead Office,Carillion Services Ltd,Large,1181556,265.07,Waste Disposal,Administration
HM Land Registry,HM Land Registry,16/05/2017,Facilities - Core Fee,Central Facilities Management Team,Carillion Services Ltd,Large,1181556,"7,065.94",Facilities - Core Fee,Administration
HM Land Registry,HM Land Registry,16/05/2017,FM Ext Helpdesk,Central Facilities Management Team,Carillion Services Ltd,Large,1181556,"11,707.33",Facilities External Helpdesk,Administration
HM Land Registry,HM Land Registry,16/05/2017,FM Managed Services,Central Facilities Management Team,Carillion Services Ltd,Large,1181556,-362.75,Facilities Managed Services,Administration
HM Land Registry,HM Land Registry,16/05/2017,Security Expenses,Central Facilities Management Team,Carillion Services Ltd,Large,1181556,-215.38,Security Expenses,Administration
HM Land Registry,HM Land Registry,16/05/2017,Facilities - Core Fee,Croydon Office,Carillion Services Ltd,Large,1181556,"8,086.28",Facilities - Core Fee,Administration
HM Land Registry,HM Land Registry,16/05/2017,FM Ext Helpdesk,Croydon Office,Carillion Services Ltd,Large,1181556,570.50,Facilities External Helpdesk,Administration
HM Land Registry,HM Land Registry,16/05/2017,FM Managed Services,Croydon Office,Carillion Services Ltd,Large,1181556,"5,905.45",Facilities Managed Services,Administration
HM Land Registry,HM Land Registry,16/05/2017,Grounds Maintenance,Croydon Office,Carillion Services Ltd,Large,1181556,62.27,Grounds Maintenance,Administration
HM Land Registry,HM Land Registry,16/05/2017,Office Cleaning Expenses,Croydon Office,Carillion Services Ltd,Large,1181556,"4,424.62",Office Cleaning Expenses,Administration
HM Land Registry,HM Land Registry,16/05/2017,Pest Control,Croydon Office,Carillion Services Ltd,Large,1181556,36.24,Pest Control,Administration
HM Land Registry,HM Land Registry,16/05/2017,Security Expenses,Croydon Office,Carillion Services Ltd,Large,1181556,"7,905.36",Security Expenses,Administration
HM Land Registry,HM Land Registry,16/05/2017,Vending Machine Consumables & Repairs,Croydon Office,Carillion Services Ltd,Large,1181556,204.94,Vending Machine Consumables & Repairs,Administration
HM Land Registry,HM Land Registry,16/05/2017,Waste Disposal,Croydon Office,Carillion Services Ltd,Large,1181556,194.08,Waste Disposal,Administration
HM Land Registry,HM Land Registry,16/05/2017,Facilities - Core Fee,Director of Information Systems,Carillion Services Ltd,Large,1181556,"17,813.94",Facilities - Core Fee,Administration
HM Land Registry,HM Land Registry,16/05/2017,FM Ext Helpdesk,Director of Information Systems,Carillion Services Ltd,Large,1181556,"1,529.77",Facilities External Helpdesk,Administration
HM Land Registry,HM Land Registry,16/05/2017,FM Managed Services,Director of Information Systems,Carillion Services Ltd,Large,1181556,"13,342.07",Facilities Managed Services,Administration
HM Land Registry,HM Land Registry,16/05/2017,Grounds Maintenance,Director of Information Systems,Carillion Services Ltd,Large,1181556,"1,413.27",Grounds Maintenance,Administration
HM Land Registry,HM Land Registry,16/05/2017,Office Cleaning Expenses,Director of Information Systems,Carillion Services Ltd,Large,1181556,"8,056.88",Office Cleaning Expenses,Administration
HM Land Registry,HM Land Registry,16/05/2017,Pest Control,Director of Information Systems,Carillion Services Ltd,Large,1181556,129.85,Pest Control,Administration
HM Land Registry,HM Land Registry,16/05/2017,Security Expenses,Director of Information Systems,Carillion Services Ltd,Large,1181556,"10,442.03",Security Expenses,Administration
HM Land Registry,HM Land Registry,16/05/2017,Vending Machine Consumables & Repairs,Director of Information Systems,Carillion Services Ltd,Large,1181556,199.55,Vending Machine Consumables & Repairs,Administration
HM Land Registry,HM Land Registry,16/05/2017,Waste Disposal,Director of Information Systems,Carillion Services Ltd,Large,1181556,607.11,Waste Disposal,Administration
HM Land Registry,HM Land Registry,16/05/2017,Facilities - Core Fee,Durham Office,Carillion Services Ltd,Large,1181556,"6,440.47",Facilities - Core Fee,Administration
HM Land Registry,HM Land Registry,16/05/2017,FM Ext Helpdesk,Durham Office,Carillion Services Ltd,Large,1181556,592.58,Facilities External Helpdesk,Administration
HM Land Registry,HM Land Registry,16/05/2017,FM Managed Services,Durham Office,Carillion Services Ltd,Large,1181556,"5,661.38",Facilities Managed Services,Administration
HM Land Registry,HM Land Registry,16/05/2017,Grounds Maintenance,Durham Office,Carillion Services Ltd,Large,1181556,773.64,Grounds Maintenance,Administration
HM Land Registry,HM Land Registry,16/05/2017,Office Cleaning Expenses,Durham Office,Carillion Services Ltd,Large,1181556,"5,732.10",Office Cleaning Expenses,Administration
HM Land Registry,HM Land Registry,16/05/2017,Pest Control,Durham Office,Carillion Services Ltd,Large,1181556,66.20,Pest Control,Administration
HM Land Registry,HM Land Registry,16/05/2017,Security Expenses,Durham Office,Carillion Services Ltd,Large,1181556,"2,311.72",Security Expenses,Administration
HM Land Registry,HM Land Registry,16/05/2017,Vending Machine Consumables & Repairs,Durham Office,Carillion Services Ltd,Large,1181556,40.35,Vending Machine Consumables & Repairs,Administration
HM Land Registry,HM Land Registry,16/05/2017,Waste Disposal,Durham Office,Carillion Services Ltd,Large,1181556,308.59,Waste Disposal,Administration
HM Land Registry,HM Land Registry,16/05/2017,Facilities - Core Fee,Fylde Office,Carillion Services Ltd,Large,1181556,"4,077.17",Facilities - Core Fee,Administration
HM Land Registry,HM Land Registry,16/05/2017,FM Ext Helpdesk,Fylde Office,Carillion Services Ltd,Large,1181556,428.26,Facilities External Helpdesk,Administration
HM Land Registry,HM Land Registry,16/05/2017,FM Managed Services,Fylde Office,Carillion Services Ltd,Large,1181556,"5,557.64",Facilities Managed Services,Administration
HM Land Registry,HM Land Registry,16/05/2017,Grounds Maintenance,Fylde Office,Carillion Services Ltd,Large,1181556,"1,444.81",Grounds Maintenance,Administration
HM Land Registry,HM Land Registry,16/05/2017,Office Cleaning Expenses,Fylde Office,Carillion Services Ltd,Large,1181556,"3,383.65",Office Cleaning Expenses,Administration
HM Land Registry,HM Land Registry,16/05/2017,Pest Control,Fylde Office,Carillion Services Ltd,Large,1181556,35.69,Pest Control,Administration
HM Land Registry,HM Land Registry,16/05/2017,Security Expenses,Fylde Office,Carillion Services Ltd,Large,1181556,"2,093.87",Security Expenses,Administration
HM Land Registry,HM Land Registry,16/05/2017,Vending Machine Consumables & Repairs,Fylde Office,Carillion Services Ltd,Large,1181556,144.01,Vending Machine Consumables & Repairs,Administration
HM Land Registry,HM Land Registry,16/05/2017,Waste Disposal,Fylde Office,Carillion Services Ltd,Large,1181556,237.54,Waste Disposal,Administration
HM Land Registry,HM Land Registry,16/05/2017,Facilities - Core Fee,Gloucester Computer Centre,Carillion Services Ltd,Large,1181556,"7,927.91",Facilities - Core Fee,Administration
HM Land Registry,HM Land Registry,16/05/2017,FM Ext Helpdesk,Gloucester Computer Centre,Carillion Services Ltd,Large,1181556,554.35,Facilities External Helpdesk,Administration
HM Land Registry,HM Land Registry,16/05/2017,FM Managed Services,Gloucester Computer Centre,Carillion Services Ltd,Large,1181556,"2,705.42",Facilities Managed Services,Administration
HM Land Registry,HM Land Registry,16/05/2017,Grounds Maintenance,Gloucester Computer Centre,Carillion Services Ltd,Large,1181556,87.43,Grounds Maintenance,Administration
HM Land Registry,HM Land Registry,16/05/2017,Office Cleaning Expenses,Gloucester Computer Centre,Carillion Services Ltd,Large,1181556,110.89,Office Cleaning Expenses,Administration
HM Land Registry,HM Land Registry,16/05/2017,Pest Control,Gloucester Computer Centre,Carillion Services Ltd,Large,1181556,25.80,Pest Control,Administration
HM Land Registry,HM Land Registry,16/05/2017,Security Expenses,Gloucester Computer Centre,Carillion Services Ltd,Large,1181556,"7,179.07",Security Expenses,Administration
HM Land Registry,HM Land Registry,16/05/2017,Vending Machine Consumables & Repairs,Gloucester Computer Centre,Carillion Services Ltd,Large,1181556,18.36,Vending Machine Consumables & Repairs,Administration
HM Land Registry,HM Land Registry,16/05/2017,Waste Disposal,Gloucester Computer Centre,Carillion Services Ltd,Large,1181556,42.18,Waste Disposal,Administration
HM Land Registry,HM Land Registry,16/05/2017,Facilities - Core Fee,Gloucester Office,Carillion Services Ltd,Large,1181556,"3,633.96",Facilities - Core Fee,Administration
HM Land Registry,HM Land Registry,16/05/2017,FM Ext Helpdesk,Gloucester Office,Carillion Services Ltd,Large,1181556,593.42,Facilities External Helpdesk,Administration
HM Land Registry,HM Land Registry,16/05/2017,FM Managed Services,Gloucester Office,Carillion Services Ltd,Large,1181556,"3,167.72",Facilities Managed Services,Administration
HM Land Registry,HM Land Registry,16/05/2017,Grounds Maintenance,Gloucester Office,Carillion Services Ltd,Large,1181556,591.28,Grounds Maintenance,Administration
HM Land Registry,HM Land Registry,16/05/2017,Office Cleaning Expenses,Gloucester Office,Carillion Services Ltd,Large,1181556,"6,398.94",Office Cleaning Expenses,Administration
HM Land Registry,HM Land Registry,16/05/2017,Pest Control,Gloucester Office,Carillion Services Ltd,Large,1181556,105.43,Pest Control,Administration
HM Land Registry,HM Land Registry,16/05/2017,Security Expenses,Gloucester Office,Carillion Services Ltd,Large,1181556,"8,511.99",Security Expenses,Administration
HM Land Registry,HM Land Registry,16/05/2017,Vending Machine Consumables & Repairs,Gloucester Office,Carillion Services Ltd,Large,1181556,131.98,Vending Machine Consumables & Repairs,Administration
HM Land Registry,HM Land Registry,16/05/2017,Waste Disposal,Gloucester Office,Carillion Services Ltd,Large,1181556,230.02,Waste Disposal,Administration
HM Land Registry,HM Land Registry,16/05/2017,Facilities - Core Fee,Hull Office,Carillion Services Ltd,Large,1181556,"6,562.73",Facilities - Core Fee,Administration
HM Land Registry,HM Land Registry,16/05/2017,FM Ext Helpdesk,Hull Office,Carillion Services Ltd,Large,1181556,474.71,Facilities External Helpdesk,Administration
HM Land Registry,HM Land Registry,16/05/2017,FM Managed Services,Hull Office,Carillion Services Ltd,Large,1181556,"5,393.84",Facilities Managed Services,Administration
HM Land Registry,HM Land Registry,16/05/2017,Grounds Maintenance,Hull Office,Carillion Services Ltd,Large,1181556,591.28,Grounds Maintenance,Administration
HM Land Registry,HM Land Registry,16/05/2017,Office Cleaning Expenses,Hull Office,Carillion Services Ltd,Large,1181556,"3,583.61",Office Cleaning Expenses,Administration
HM Land Registry,HM Land Registry,16/05/2017,Pest Control,Hull Office,Carillion Services Ltd,Large,1181556,45.10,Pest Control,Administration
HM Land Registry,HM Land Registry,16/05/2017,Security Expenses,Hull Office,Carillion Services Ltd,Large,1181556,"2,617.86",Security Expenses,Administration
HM Land Registry,HM Land Registry,16/05/2017,Vending Machine Consumables & Repairs,Hull Office,Carillion Services Ltd,Large,1181556,317.45,Vending Machine Consumables & Repairs,Administration
HM Land Registry,HM Land Registry,16/05/2017,Waste Disposal,Hull Office,Carillion Services Ltd,Large,1181556,173.51,Waste Disposal,Administration
HM Land Registry,HM Land Registry,16/05/2017,Facilities - Core Fee,Leicester Office,Carillion Services Ltd,Large,1181556,"8,954.84",Facilities - Core Fee,Administration
HM Land Registry,HM Land Registry,16/05/2017,FM Ext Helpdesk,Leicester Office,Carillion Services Ltd,Large,1181556,502.14,Facilities External Helpdesk,Administration
HM Land Registry,HM Land Registry,16/05/2017,FM Managed Services,Leicester Office,Carillion Services Ltd,Large,1181556,"3,988.45",Facilities Managed Services,Administration
HM Land Registry,HM Land Registry,16/05/2017,Grounds Maintenance,Leicester Office,Carillion Services Ltd,Large,1181556,124.47,Grounds Maintenance,Administration
HM Land Registry,HM Land Registry,16/05/2017,Office Cleaning Expenses,Leicester Office,Carillion Services Ltd,Large,1181556,"2,162.48",Office Cleaning Expenses,Administration
HM Land Registry,HM Land Registry,16/05/2017,Pest Control,Leicester Office,Carillion Services Ltd,Large,1181556,35.69,Pest Control,Administration
HM Land Registry,HM Land Registry,16/05/2017,Security Expenses,Leicester Office,Carillion Services Ltd,Large,1181556,"2,534.95",Security Expenses,Administration
HM Land Registry,HM Land Registry,16/05/2017,Vending Machine Consumables & Repairs,Leicester Office,Carillion Services Ltd,Large,1181556,106.19,Vending Machine Consumables & Repairs,Administration
HM Land Registry,HM Land Registry,16/05/2017,Waste Disposal,Leicester Office,Carillion Services Ltd,Large,1181556,250.98,Waste Disposal,Administration
HM Land Registry,HM Land Registry,16/05/2017,Facilities - Core Fee,Nottingham Office,Carillion Services Ltd,Large,1181556,"6,206.23",Facilities - Core Fee,Administration
HM Land Registry,HM Land Registry,16/05/2017,FM Ext Helpdesk,Nottingham Office,Carillion Services Ltd,Large,1181556,"1,720.21",Facilities External Helpdesk,Administration
HM Land Registry,HM Land Registry,16/05/2017,FM Managed Services,Nottingham Office,Carillion Services Ltd,Large,1181556,"10,332.45",Facilities Managed Services,Administration
HM Land Registry,HM Land Registry,16/05/2017,Grounds Maintenance,Nottingham Office,Carillion Services Ltd,Large,1181556,299.77,Grounds Maintenance,Administration
HM Land Registry,HM Land Registry,16/05/2017,Office Cleaning Expenses,Nottingham Office,Carillion Services Ltd,Large,1181556,"5,418.65",Office Cleaning Expenses,Administration
HM Land Registry,HM Land Registry,16/05/2017,Pest Control,Nottingham Office,Carillion Services Ltd,Large,1181556,121.85,Pest Control,Administration
HM Land Registry,HM Land Registry,16/05/2017,Security Expenses,Nottingham Office,Carillion Services Ltd,Large,1181556,"3,000.94",Security Expenses,Administration
HM Land Registry,HM Land Registry,16/05/2017,Vending Machine Consumables & Repairs,Nottingham Office,Carillion Services Ltd,Large,1181556,118.69,Vending Machine Consumables & Repairs,Administration
HM Land Registry,HM Land Registry,16/05/2017,Waste Disposal,Nottingham Office,Carillion Services Ltd,Large,1181556,308.59,Waste Disposal,Administration
HM Land Registry,HM Land Registry,16/05/2017,Facilities - Core Fee,Peterborough Office,Carillion Services Ltd,Large,1181556,"3,546.27",Facilities - Core Fee,Administration
HM Land Registry,HM Land Registry,16/05/2017,FM Ext Helpdesk,Peterborough Office,Carillion Services Ltd,Large,1181556,603.72,Facilities External Helpdesk,Administration
HM Land Registry,HM Land Registry,16/05/2017,FM Managed Services,Peterborough Office,Carillion Services Ltd,Large,1181556,"5,207.17",Facilities Managed Services,Administration
HM Land Registry,HM Land Registry,16/05/2017,Office Cleaning Expenses,Peterborough Office,Carillion Services Ltd,Large,1181556,769.34,Office Cleaning Expenses,Administration
HM Land Registry,HM Land Registry,16/05/2017,Pest Control,Peterborough Office,Carillion Services Ltd,Large,1181556,37.05,Pest Control,Administration
HM Land Registry,HM Land Registry,16/05/2017,Facilities - Core Fee,Telford Office,Carillion Services Ltd,Large,1181556,"6,327.00",Facilities - Core Fee,Administration
HM Land Registry,HM Land Registry,16/05/2017,FM Ext Helpdesk,Telford Office,Carillion Services Ltd,Large,1181556,622.87,Facilities External Helpdesk,Administration
HM Land Registry,HM Land Registry,16/05/2017,FM Managed Services,Telford Office,Carillion Services Ltd,Large,1181556,"5,833.52",Facilities Managed Services,Administration
HM Land Registry,HM Land Registry,16/05/2017,Grounds Maintenance,Telford Office,Carillion Services Ltd,Large,1181556,"1,018.96",Grounds Maintenance,Administration
HM Land Registry,HM Land Registry,16/05/2017,Office Cleaning Expenses,Telford Office,Carillion Services Ltd,Large,1181556,"5,717.14",Office Cleaning Expenses,Administration
HM Land Registry,HM Land Registry,16/05/2017,Pest Control,Telford Office,Carillion Services Ltd,Large,1181556,40.51,Pest Control,Administration
HM Land Registry,HM Land Registry,16/05/2017,Security Expenses,Telford Office,Carillion Services Ltd,Large,1181556,"2,574.85",Security Expenses,Administration
HM Land Registry,HM Land Registry,16/05/2017,Vending Machine Consumables & Repairs,Telford Office,Carillion Services Ltd,Large,1181556,181.28,Vending Machine Consumables & Repairs,Administration
HM Land Registry,HM Land Registry,16/05/2017,Waste Disposal,Telford Office,Carillion Services Ltd,Large,1181556,221.95,Waste Disposal,Administration
HM Land Registry,HM Land Registry,16/05/2017,Facilities - Core Fee,Wales Office,Carillion Services Ltd,Large,1181556,"5,379.83",Facilities - Core Fee,Administration
HM Land Registry,HM Land Registry,16/05/2017,FM Ext Helpdesk,Wales Office,Carillion Services Ltd,Large,1181556,514.67,Facilities External Helpdesk,Administration
HM Land Registry,HM Land Registry,16/05/2017,FM Managed Services,Wales Office,Carillion Services Ltd,Large,1181556,"5,608.75",Facilities Managed Services,Administration
HM Land Registry,HM Land Registry,16/05/2017,Grounds Maintenance,Wales Office,Carillion Services Ltd,Large,1181556,438.67,Grounds Maintenance,Administration
HM Land Registry,HM Land Registry,16/05/2017,Office Cleaning Expenses,Wales Office,Carillion Services Ltd,Large,1181556,"4,529.58",Office Cleaning Expenses,Administration
HM Land Registry,HM Land Registry,16/05/2017,Pest Control,Wales Office,Carillion Services Ltd,Large,1181556,87.99,Pest Control,Administration
HM Land Registry,HM Land Registry,16/05/2017,Security Expenses,Wales Office,Carillion Services Ltd,Large,1181556,"2,333.58",Security Expenses,Administration
HM Land Registry,HM Land Registry,16/05/2017,Vending Machine Consumables & Repairs,Wales Office,Carillion Services Ltd,Large,1181556,177.72,Vending Machine Consumables & Repairs,Administration
HM Land Registry,HM Land Registry,16/05/2017,Waste Disposal,Wales Office,Carillion Services Ltd,Large,1181556,512.29,Waste Disposal,Administration
HM Land Registry,HM Land Registry,16/05/2017,Facilities - Core Fee,Weymouth Office,Carillion Services Ltd,Large,1181556,"2,692.35",Facilities - Core Fee,Administration
HM Land Registry,HM Land Registry,16/05/2017,FM Ext Helpdesk,Weymouth Office,Carillion Services Ltd,Large,1181556,385.16,Facilities External Helpdesk,Administration
HM Land Registry,HM Land Registry,16/05/2017,FM Managed Services,Weymouth Office,Carillion Services Ltd,Large,1181556,"5,478.41",Facilities Managed Services,Administration
HM Land Registry,HM Land Registry,16/05/2017,Grounds Maintenance,Weymouth Office,Carillion Services Ltd,Large,1181556,681.51,Grounds Maintenance,Administration
HM Land Registry,HM Land Registry,16/05/2017,Office Cleaning Expenses,Weymouth Office,Carillion Services Ltd,Large,1181556,"4,047.39",Office Cleaning Expenses,Administration
HM Land Registry,HM Land Registry,16/05/2017,Pest Control,Weymouth Office,Carillion Services Ltd,Large,1181556,37.74,Pest Control,Administration
HM Land Registry,HM Land Registry,16/05/2017,Security Expenses,Weymouth Office,Carillion Services Ltd,Large,1181556,"2,577.22",Security Expenses,Administration
HM Land Registry,HM Land Registry,16/05/2017,Vending Machine Consumables & Repairs,Weymouth Office,Carillion Services Ltd,Large,1181556,102.86,Vending Machine Consumables & Repairs,Administration
HM Land Registry,HM Land Registry,16/05/2017,Waste Disposal,Weymouth Office,Carillion Services Ltd,Large,1181556,157.75,Waste Disposal,Administration
HM Land Registry,HM Land Registry,16/05/2017,Facilities - Quoted & Ad Hoc Works,Birkenhead Office,Carillion Services Ltd,Large,1181572,"7,359.16",Facilities - Quoted & Ad Hoc Works,Administration
HM Land Registry,HM Land Registry,16/05/2017,Grounds Maintenance,Birkenhead Office,Carillion Services Ltd,Large,1181572,72.63,Grounds Maintenance,Administration
HM Land Registry,HM Land Registry,16/05/2017,Security Expenses,Birkenhead Office,Carillion Services Ltd,Large,1181572,539.08,Security Expenses,Administration
HM Land Registry,HM Land Registry,16/05/2017,Waste Disposal,Birkenhead Office,Carillion Services Ltd,Large,1181572,178.86,Waste Disposal,Administration
HM Land Registry,HM Land Registry,16/05/2017,"FF&F:Purchases <1,000",Central Facilities Management Team,Carillion Services Ltd,Large,1181572,"8,352.82","Furniture, Fixtures & Fittings: Purchases less than 1,000.00",Administration
HM Land Registry,HM Land Registry,16/05/2017,"FF&F:Purchases <1,000",Coventry Office,Carillion Services Ltd,Large,1181572,"1,358.64","Furniture, Fixtures & Fittings: Purchases less than 1,000.00",Administration
HM Land Registry,HM Land Registry,16/05/2017,Facilities - Quoted & Ad Hoc Works,Croydon Office,Carillion Services Ltd,Large,1181572,"15,738.72",Facilities - Quoted & Ad Hoc Works,Administration
HM Land Registry,HM Land Registry,16/05/2017,Security Expenses,Croydon Office,Carillion Services Ltd,Large,1181572,539.08,Security Expenses,Administration
HM Land Registry,HM Land Registry,16/05/2017,Waste Disposal,Croydon Office,Carillion Services Ltd,Large,1181572,292.17,Waste Disposal,Administration
HM Land Registry,HM Land Registry,16/05/2017,"FF&F:Purchases <1,000",Croydon Office,Carillion Services Ltd,Large,1181572,"1,080.50","Furniture, Fixtures & Fittings: Purchases less than 1,000.00",Administration
HM Land Registry,HM Land Registry,16/05/2017,Waste Disposal,Director of Information Systems,Carillion Services Ltd,Large,1181572,21.67,Waste Disposal,Administration
HM Land Registry,HM Land Registry,16/05/2017,Facilities - Quoted & Ad Hoc Works,Durham Office,Carillion Services Ltd,Large,1181572,"3,341.24",Facilities - Quoted & Ad Hoc Works,Administration
HM Land Registry,HM Land Registry,16/05/2017,Grounds Maintenance,Durham Office,Carillion Services Ltd,Large,1181572,518.75,Grounds Maintenance,Administration
HM Land Registry,HM Land Registry,16/05/2017,Security Expenses,Durham Office,Carillion Services Ltd,Large,1181572,539.08,Security Expenses,Administration
HM Land Registry,HM Land Registry,16/05/2017,Waste Disposal,Durham Office,Carillion Services Ltd,Large,1181572,176.82,Waste Disposal,Administration
HM Land Registry,HM Land Registry,16/05/2017,"FF&F:Purchases <1,000",Durham Office,Carillion Services Ltd,Large,1181572,"1,839.95","Furniture, Fixtures & Fittings: Purchases less than 1,000.00",Administration
HM Land Registry,HM Land Registry,16/05/2017,Facilities - Quoted & Ad Hoc Works,Fylde Office,Carillion Services Ltd,Large,1181572,"10,811.41",Facilities - Quoted & Ad Hoc Works,Administration
HM Land Registry,HM Land Registry,16/05/2017,Grounds Maintenance,Fylde Office,Carillion Services Ltd,Large,1181572,"1,548.25",Grounds Maintenance,Administration
HM Land Registry,HM Land Registry,16/05/2017,Security Expenses,Fylde Office,Carillion Services Ltd,Large,1181572,"1,270.56",Security Expenses,Administration
HM Land Registry,HM Land Registry,16/05/2017,Waste Disposal,Fylde Office,Carillion Services Ltd,Large,1181572,178.86,Waste Disposal,Administration
HM Land Registry,HM Land Registry,16/05/2017,"FF&F:Purchases <1,000",Fylde Office,Carillion Services Ltd,Large,1181572,"4,073.75","Furniture, Fixtures & Fittings: Purchases less than 1,000.00",Administration
HM Land Registry,HM Land Registry,16/05/2017,Major Property Maintenance Projects,Fylde Office,Carillion Services Ltd,Large,1181572,"24,964.06",Major Property Maintenance Projects,Administration
HM Land Registry,HM Land Registry,16/05/2017,Grounds Maintenance,Gloucester Computer Centre,Carillion Services Ltd,Large,1181572,72.63,Grounds Maintenance,Administration
HM Land Registry,HM Land Registry,16/05/2017,Facilities - Quoted & Ad Hoc Works,Gloucester Office,Carillion Services Ltd,Large,1181572,"5,363.95",Facilities - Quoted & Ad Hoc Works,Administration
HM Land Registry,HM Land Registry,16/05/2017,Grounds Maintenance,Gloucester Office,Carillion Services Ltd,Large,1181572,176.38,Grounds Maintenance,Administration
HM Land Registry,HM Land Registry,16/05/2017,Waste Disposal,Gloucester Office,Carillion Services Ltd,Large,1181572,292.17,Waste Disposal,Administration
HM Land Registry,HM Land Registry,16/05/2017,Facilities - Quoted & Ad Hoc Works,Hull Office,Carillion Services Ltd,Large,1181572,"5,627.81",Facilities - Quoted & Ad Hoc Works,Administration
HM Land Registry,HM Land Registry,16/05/2017,Grounds Maintenance,Hull Office,Carillion Services Ltd,Large,1181572,352.75,Grounds Maintenance,Administration
HM Land Registry,HM Land Registry,16/05/2017,Security Expenses,Hull Office,Carillion Services Ltd,Large,1181572,"1,740.41",Security Expenses,Administration
HM Land Registry,HM Land Registry,16/05/2017,Waste Disposal,Hull Office,Carillion Services Ltd,Large,1181572,"1,328.77",Waste Disposal,Administration
HM Land Registry,HM Land Registry,16/05/2017,"FF&F:Purchases <1,000",Hull Office,Carillion Services Ltd,Large,1181572,"4,604.32","Furniture, Fixtures & Fittings: Purchases less than 1,000.00",Administration
HM Land Registry,HM Land Registry,16/05/2017,Major Property Maintenance Projects,Hull Office,Carillion Services Ltd,Large,1181572,"95,488.57",Major Property Maintenance Projects,Administration
HM Land Registry,HM Land Registry,16/05/2017,Facilities - Quoted & Ad Hoc Works,Leicester Office,Carillion Services Ltd,Large,1181572,"19,036.12",Facilities - Quoted & Ad Hoc Works,Administration
HM Land Registry,HM Land Registry,16/05/2017,Grounds Maintenance,Leicester Office,Carillion Services Ltd,Large,1181572,88.19,Grounds Maintenance,Administration
HM Land Registry,HM Land Registry,16/05/2017,Security Expenses,Leicester Office,Carillion Services Ltd,Large,1181572,539.08,Security Expenses,Administration
HM Land Registry,HM Land Registry,16/05/2017,Waste Disposal,Leicester Office,Carillion Services Ltd,Large,1181572,182.86,Waste Disposal,Administration
HM Land Registry,HM Land Registry,16/05/2017,"FF&F:Purchases <1,000",Leicester Office,Carillion Services Ltd,Large,1181572,"1,333.29","Furniture, Fixtures & Fittings: Purchases less than 1,000.00",Administration
HM Land Registry,HM Land Registry,16/05/2017,Facilities - Quoted & Ad Hoc Works,Nottingham Office,Carillion Services Ltd,Large,1181572,"19,296.40",Facilities - Quoted & Ad Hoc Works,Administration
HM Land Registry,HM Land Registry,16/05/2017,Grounds Maintenance,Nottingham Office,Carillion Services Ltd,Large,1181572,294.25,Grounds Maintenance,Administration
HM Land Registry,HM Land Registry,16/05/2017,Security Expenses,Nottingham Office,Carillion Services Ltd,Large,1181572,854.10,Security Expenses,Administration
HM Land Registry,HM Land Registry,16/05/2017,"FF&F:Purchases <1,000",Nottingham Office,Carillion Services Ltd,Large,1181572,"8,762.52","Furniture, Fixtures & Fittings: Purchases less than 1,000.00",Administration
HM Land Registry,HM Land Registry,16/05/2017,FF&F:Removals,Nottingham Office,Carillion Services Ltd,Large,1181572,220.85,"Furniture, Fixtures & Fittings: Removals",Administration
HM Land Registry,HM Land Registry,16/05/2017,Facilities - Quoted & Ad Hoc Works,Peterborough Office,Carillion Services Ltd,Large,1181572,"4,178.12",Facilities - Quoted & Ad Hoc Works,Administration
HM Land Registry,HM Land Registry,16/05/2017,Security Expenses,Peterborough Office,Carillion Services Ltd,Large,1181572,539.08,Security Expenses,Administration
HM Land Registry,HM Land Registry,16/05/2017,Facilities - Quoted & Ad Hoc Works,Plymouth Office,Carillion Services Ltd,Large,1181572,"3,787.73",Facilities - Quoted & Ad Hoc Works,Administration
HM Land Registry,HM Land Registry,16/05/2017,"FF&F:Purchases <1,000",Plymouth Office,Carillion Services Ltd,Large,1181572,619.80,"Furniture, Fixtures & Fittings: Purchases less than 1,000.00",Administration
HM Land Registry,HM Land Registry,16/05/2017,Facilities - Quoted & Ad Hoc Works,Telford Office,Carillion Services Ltd,Large,1181572,"4,035.60",Facilities - Quoted & Ad Hoc Works,Administration
HM Land Registry,HM Land Registry,16/05/2017,Grounds Maintenance,Telford Office,Carillion Services Ltd,Large,1181572,311.25,Grounds Maintenance,Administration
HM Land Registry,HM Land Registry,16/05/2017,Security Expenses,Telford Office,Carillion Services Ltd,Large,1181572,539.08,Security Expenses,Administration
HM Land Registry,HM Land Registry,16/05/2017,"FF&F:Purchases <1,000",Telford Office,Carillion Services Ltd,Large,1181572,"1,772.85","Furniture, Fixtures & Fittings: Purchases less than 1,000.00",Administration
HM Land Registry,HM Land Registry,16/05/2017,Facilities - Quoted & Ad Hoc Works,Wales Office,Carillion Services Ltd,Large,1181572,"5,190.12",Facilities - Quoted & Ad Hoc Works,Administration
HM Land Registry,HM Land Registry,16/05/2017,Grounds Maintenance,Wales Office,Carillion Services Ltd,Large,1181572,176.38,Grounds Maintenance,Administration
HM Land Registry,HM Land Registry,16/05/2017,Security Expenses,Wales Office,Carillion Services Ltd,Large,1181572,539.08,Security Expenses,Administration
HM Land Registry,HM Land Registry,16/05/2017,Waste Disposal,Wales Office,Carillion Services Ltd,Large,1181572,996.21,Waste Disposal,Administration
HM Land Registry,HM Land Registry,16/05/2017,"FF&F:Purchases <1,000",Wales Office,Carillion Services Ltd,Large,1181572,191.83,"Furniture, Fixtures & Fittings: Purchases less than 1,000.00",Administration
HM Land Registry,HM Land Registry,16/05/2017,Major Property Maintenance Projects,Wales Office,Carillion Services Ltd,Large,1181572,"23,683.71",Major Property Maintenance Projects,Administration
HM Land Registry,HM Land Registry,16/05/2017,Facilities - Quoted & Ad Hoc Works,Weymouth Office,Carillion Services Ltd,Large,1181572,"12,732.33",Facilities - Quoted & Ad Hoc Works,Administration
HM Land Registry,HM Land Registry,16/05/2017,Security Expenses,Weymouth Office,Carillion Services Ltd,Large,1181572,539.08,Security Expenses,Administration
HM Land Registry,HM Land Registry,16/05/2017,"FF&F:Purchases <1,000",Weymouth Office,Carillion Services Ltd,Large,1181572,"1,938.57","Furniture, Fixtures & Fittings: Purchases less than 1,000.00",Administration
HM Land Registry,HM Land Registry,16/05/2017,Electricity,Birkenhead Office,Carillion Services Ltd,Large,1181557,"3,688.81",Electricity,Administration
HM Land Registry,HM Land Registry,16/05/2017,Gas,Birkenhead Office,Carillion Services Ltd,Large,1181557,"1,336.06",Gas,Administration
HM Land Registry,HM Land Registry,16/05/2017,Electricity,Croydon Office,Carillion Services Ltd,Large,1181557,"5,404.59",Electricity,Administration
HM Land Registry,HM Land Registry,16/05/2017,Gas,Croydon Office,Carillion Services Ltd,Large,1181557,"2,359.42",Gas,Administration
HM Land Registry,HM Land Registry,16/05/2017,Electricity,Director of Information Systems,Carillion Services Ltd,Large,1181557,"48,044.74",Electricity,Administration
HM Land Registry,HM Land Registry,16/05/2017,Gas,Director of Information Systems,Carillion Services Ltd,Large,1181557,"4,898.54",Gas,Administration
HM Land Registry,HM Land Registry,16/05/2017,Water,Director of Information Systems,Carillion Services Ltd,Large,1181557,590.19,Water,Administration
HM Land Registry,HM Land Registry,16/05/2017,Electricity,Durham Office,Carillion Services Ltd,Large,1181557,"4,422.75",Electricity,Administration
HM Land Registry,HM Land Registry,16/05/2017,Gas,Durham Office,Carillion Services Ltd,Large,1181557,"1,017.69",Gas,Administration
HM Land Registry,HM Land Registry,16/05/2017,Electricity,Fylde Office,Carillion Services Ltd,Large,1181557,"4,203.80",Electricity,Administration
HM Land Registry,HM Land Registry,16/05/2017,Gas,Fylde Office,Carillion Services Ltd,Large,1181557,"1,796.95",Gas,Administration
HM Land Registry,HM Land Registry,16/05/2017,Water,Fylde Office,Carillion Services Ltd,Large,1181557,"3,984.55",Water,Administration
HM Land Registry,HM Land Registry,16/05/2017,Electricity,Gloucester Computer Centre,Carillion Services Ltd,Large,1181557,"31,617.16",Electricity,Administration
HM Land Registry,HM Land Registry,16/05/2017,Gas,Gloucester Computer Centre,Carillion Services Ltd,Large,1181557,519.83,Gas,Administration
HM Land Registry,HM Land Registry,16/05/2017,Electricity,Gloucester Office,Carillion Services Ltd,Large,1181557,"5,727.27",Electricity,Administration
HM Land Registry,HM Land Registry,16/05/2017,Gas,Gloucester Office,Carillion Services Ltd,Large,1181557,"1,937.16",Gas,Administration
HM Land Registry,HM Land Registry,16/05/2017,Electricity,Hull Office,Carillion Services Ltd,Large,1181557,"6,850.02",Electricity,Administration
HM Land Registry,HM Land Registry,16/05/2017,Gas,Hull Office,Carillion Services Ltd,Large,1181557,"2,330.51",Gas,Administration
HM Land Registry,HM Land Registry,16/05/2017,Electricity,Leicester Office,Carillion Services Ltd,Large,1181557,"3,643.29",Electricity,Administration
HM Land Registry,HM Land Registry,16/05/2017,Gas,Leicester Office,Carillion Services Ltd,Large,1181557,"1,590.10",Gas,Administration
HM Land Registry,HM Land Registry,16/05/2017,Electricity,Nottingham Office,Carillion Services Ltd,Large,1181557,"5,835.47",Electricity,Administration
HM Land Registry,HM Land Registry,16/05/2017,Gas,Nottingham Office,Carillion Services Ltd,Large,1181557,"1,119.02",Gas,Administration
HM Land Registry,HM Land Registry,16/05/2017,Electricity,Telford Office,Carillion Services Ltd,Large,1181557,"4,871.65",Electricity,Administration
HM Land Registry,HM Land Registry,16/05/2017,Gas,Telford Office,Carillion Services Ltd,Large,1181557,"2,080.90",Gas,Administration
HM Land Registry,HM Land Registry,16/05/2017,Electricity,Wales Office,Carillion Services Ltd,Large,1181557,"4,853.39",Electricity,Administration
HM Land Registry,HM Land Registry,16/05/2017,Gas,Wales Office,Carillion Services Ltd,Large,1181557,"1,263.65",Gas,Administration
HM Land Registry,HM Land Registry,16/05/2017,Water,Wales Office,Carillion Services Ltd,Large,1181557,"4,195.59",Water,Administration
HM Land Registry,HM Land Registry,16/05/2017,Electricity,Weymouth Office,Carillion Services Ltd,Large,1181557,"6,471.83",Electricity,Administration
HM Land Registry,HM Land Registry,16/05/2017,Gas,Weymouth Office,Carillion Services Ltd,Large,1181557,"1,170.53",Gas,Administration
HM Land Registry,HM Land Registry,30/05/2017,Rates Payable,Wales Office,City & County of Swansea,Large,1176720,"22,580.00",Rates Payable,Administration
HM Land Registry,HM Land Registry,16/05/2017,Professional Services,Dir: Information Systems,Convergent Network Solutions Ltd,Large,1181612,"29,580.00",Professional Services,Administration
HM Land Registry,HM Land Registry,02/05/2017,Rates Payable,Croydon Office,Croydon Council,Large,1176376,"40,419.00",Rates Payable,Administration
HM Land Registry,HM Land Registry,31/05/2017,Rates Payable,Croydon Office,Croydon Council,Large,1176376,"40,419.00",Rates Payable,Administration
HM Land Registry,HM Land Registry,02/05/2017,Computer Equipment Non HP Licences,IS Service Delivery,Datrix Ltd,SME,1180088,"28,800.00",Computer Equipment Non HP Licences,Administration
HM Land Registry,HM Land Registry,30/05/2017,Rates Payable,Durham Office,Durham County Council,Large,1176070,"28,213.00",Rates Payable,Administration
HM Land Registry,HM Land Registry,02/05/2017,Professional Subscriptions,International Relations,EuroGeographics aisbi,SME,1180200,"36,339.78",Professional Subscriptions,Administration
HM Land Registry,HM Land Registry,30/05/2017,Rates Payable,Fylde Office,Fylde Borough Council,Large,1175982,"17,124.00",Rates Payable,Administration
HM Land Registry,HM Land Registry,30/05/2017,Rates Payable,Gloucester Office,Gloucester City Council,Large,1175823,"28,980.00",Rates Payable,Administration
HM Land Registry,HM Land Registry,15/05/2017,Independent Adjudicators's Office Costs,Independent Adjudicator,HM Courts & Tribunals Service,Large,1181486,"650,250.00",Independent Adjudicators's Office Costs,Administration
HM Land Registry,HM Land Registry,10/05/2017,Other External Training,Property Asset Management Group,Inchcape Fleet Solutions Limited,Large,1180679,"42,967.50",Other External Training,Administration
HM Land Registry,HM Land Registry,05/05/2017,Professional Services,Program: Local Land Charges,Kainos Software Ltd,Large,1180536,"265,471.12",Professional Services,Administration
HM Land Registry,HM Land Registry,10/05/2017,Rates Payable,Hull Office,Kingston Upon Hull City Council,Large,1176171,"12,878.00",Rates Payable,Administration
HM Land Registry,HM Land Registry,22/05/2017,Consultancy Non-IT Advice Only,Finance Group,Lane Clark & Peacock LLP,Large,1182041,"22,000.00",Consultancy Non-IT Advice Only,Administration
HM Land Registry,HM Land Registry,30/05/2017,Rates Payable,Leicester Office,Leicester City Council,Large,1176378,"22,034.00",Rates Payable,Administration
HM Land Registry,HM Land Registry,30/05/2017,Rates Payable,Nottingham Office,Nottingham City Council,Large,1176596,"26,585.00",Rates Payable,Administration
HM Land Registry,HM Land Registry,17/05/2017,Computer Equipment Maintenance,IS Service Delivery,Oracle Corporation (UK) Ltd,Large,1181415,"101,512.50",Computer Equipment Maintenance,Administration
HM Land Registry,HM Land Registry,12/05/2017,Professional Services,Program: Local Land Charges,PA Consulting Services Ltd,Large,1179348,"278,447.76",Professional Services,Administration
HM Land Registry,HM Land Registry,12/05/2017,Professional Services,Program: Local Land Charges,PA Consulting Services Ltd,Large,1179349,"317,108.28",Professional Services,Administration
HM Land Registry,HM Land Registry,30/05/2017,Rates Payable,Peterborough Office,Peterborough City Council,Large,1176069,"10,690.00",Rates Payable,Administration
HM Land Registry,HM Land Registry,30/05/2017,Rates Payable,Director of Information Systems,Plymouth City Council,Large,1176173,"36,385.00",Rates Payable,Administration
HM Land Registry,HM Land Registry,08/05/2017,Travel & Subsistence General Duty,Birkenhead Office,Redfern Travel Ltd,SME,1180806,69.90,Travel & Subsistence,Administration
HM Land Registry,HM Land Registry,08/05/2017,Travel & Subsistence General Duty,Business Development,Redfern Travel Ltd,SME,1180806,292.00,Travel & Subsistence,Administration
HM Land Registry,HM Land Registry,08/05/2017,Travel & Subsistence General Duty,Central Facilities Management Team,Redfern Travel Ltd,SME,1180806,"2,321.20",Travel & Subsistence,Administration
HM Land Registry,HM Land Registry,08/05/2017,Travel & Subsistence Dual Workplace,Central Facilities Management Team,Redfern Travel Ltd,SME,1180806,77.60,Travel & Subsistence,Administration
HM Land Registry,HM Land Registry,08/05/2017,Travel & Subsistence General Duty,Central Operations Group,Redfern Travel Ltd,SME,1180806,"1,544.85",Travel & Subsistence,Administration
HM Land Registry,HM Land Registry,08/05/2017,Travel & Subsistence General Duty,Chief Executives Office,Redfern Travel Ltd,SME,1180806,"1,389.89",Travel & Subsistence,Administration
HM Land Registry,HM Land Registry,08/05/2017,Travel & Subsistence General Duty,Commercial Director,Redfern Travel Ltd,SME,1180806,-102.60,Travel & Subsistence,Administration
HM Land Registry,HM Land Registry,08/05/2017,Travel & Subsistence General Duty,Corp Procurement,Redfern Travel Ltd,SME,1180806,146.43,Travel & Subsistence,Administration
HM Land Registry,HM Land Registry,08/05/2017,Travel & Subsistence Dual Workplace,Corp Procurement,Redfern Travel Ltd,SME,1180806,136.60,Travel & Subsistence,Administration
HM Land Registry,HM Land Registry,08/05/2017,Travel & Subsistence General Duty,Corporate Legal Services,Redfern Travel Ltd,SME,1180806,234.55,Travel & Subsistence,Administration
HM Land Registry,HM Land Registry,08/05/2017,Travel & Subsistence Dual Workplace,Corporate Legal Services,Redfern Travel Ltd,SME,1180806,34.55,Travel & Subsistence,Administration
HM Land Registry,HM Land Registry,08/05/2017,Travel & Subsistence General Duty,Coventry Office,Redfern Travel Ltd,SME,1180806,605.80,Travel & Subsistence,Administration
HM Land Registry,HM Land Registry,08/05/2017,Travel & Subsistence General Duty,Croydon Office,Redfern Travel Ltd,SME,1180806,585.42,Travel & Subsistence,Administration
HM Land Registry,HM Land Registry,08/05/2017,Travel & Subsistence General Duty,Data Group,Redfern Travel Ltd,SME,1180806,480.40,Travel & Subsistence,Administration
HM Land Registry,HM Land Registry,08/05/2017,Travel & Subsistence General Duty,Dir: (Statutory) Digital Services,Redfern Travel Ltd,SME,1180806,"1,534.70",Travel & Subsistence,Administration
HM Land Registry,HM Land Registry,08/05/2017,Travel & Subsistence General Duty,Dir: Operations,Redfern Travel Ltd,SME,1180806,916.25,Travel & Subsistence,Administration
HM Land Registry,HM Land Registry,08/05/2017,Travel & Subsistence General Duty,Director of Information Systems,Redfern Travel Ltd,SME,1180806,"2,329.47",Travel & Subsistence,Administration
HM Land Registry,HM Land Registry,08/05/2017,Travel & Subsistence General Duty,Director of Operations,Redfern Travel Ltd,SME,1180806,82.20,Travel & Subsistence,Administration
HM Land Registry,HM Land Registry,08/05/2017,Travel & Subsistence General Duty,Durham Office,Redfern Travel Ltd,SME,1180806,11.25,Travel & Subsistence,Administration
HM Land Registry,HM Land Registry,08/05/2017,Travel & Subsistence General Duty,Finance Director,Redfern Travel Ltd,SME,1180806,17.50,Travel & Subsistence,Administration
HM Land Registry,HM Land Registry,08/05/2017,Travel & Subsistence General Duty,Finance Group,Redfern Travel Ltd,SME,1180806,333.10,Travel & Subsistence,Administration
HM Land Registry,HM Land Registry,08/05/2017,Travel & Subsistence General Duty,Fylde Office,Redfern Travel Ltd,SME,1180806,557.20,Travel & Subsistence,Administration
HM Land Registry,HM Land Registry,08/05/2017,Travel & Subsistence General Duty,Gloucester Office,Redfern Travel Ltd,SME,1180806,308.49,Travel & Subsistence,Administration
HM Land Registry,HM Land Registry,08/05/2017,Travel & Subsistence General Duty,Guarantee & Litigation,Redfern Travel Ltd,SME,1180806,67.10,Travel & Subsistence,Administration
HM Land Registry,HM Land Registry,08/05/2017,Travel & Subsistence General Duty,HR Group,Redfern Travel Ltd,SME,1180806,"3,729.15",Travel & Subsistence,Administration
HM Land Registry,HM Land Registry,08/05/2017,Travel & Subsistence General Duty,Leicester Office,Redfern Travel Ltd,SME,1180806,211.20,Travel & Subsistence,Administration
HM Land Registry,HM Land Registry,08/05/2017,Travel & Subsistence General Duty,Local Land Charges,Redfern Travel Ltd,SME,1180806,"3,416.92",Travel & Subsistence,Administration
HM Land Registry,HM Land Registry,08/05/2017,Travel & Subsistence Dual Workplace,Local Land Charges,Redfern Travel Ltd,SME,1180806,475.90,Travel & Subsistence,Administration
HM Land Registry,HM Land Registry,08/05/2017,Travel & Subsistence General Duty,Local Lawyer Group,Redfern Travel Ltd,SME,1180806,"1,258.70",Travel & Subsistence,Administration
HM Land Registry,HM Land Registry,08/05/2017,Travel & Subsistence General Duty,Marketing Services Team,Redfern Travel Ltd,SME,1180806,88.00,Travel & Subsistence,Administration
HM Land Registry,HM Land Registry,08/05/2017,Travel & Subsistence General Duty,Nottingham Office,Redfern Travel Ltd,SME,1180806,214.40,Travel & Subsistence,Administration
HM Land Registry,HM Land Registry,08/05/2017,Travel & Subsistence General Duty,Peterborough Office,Redfern Travel Ltd,SME,1180806,-51.40,Travel & Subsistence,Administration
HM Land Registry,HM Land Registry,08/05/2017,Travel & Subsistence General Duty,Plymouth Office,Redfern Travel Ltd,SME,1180806,69.53,Travel & Subsistence,Administration
HM Land Registry,HM Land Registry,08/05/2017,Travel & Subsistence General Duty,Product Development & Management,Redfern Travel Ltd,SME,1180806,345.98,Travel & Subsistence,Administration
HM Land Registry,HM Land Registry,08/05/2017,Travel & Subsistence Overseas Travel,Product Development & Management,Redfern Travel Ltd,SME,1180806,163.60,Travel & Subsistence,Administration
HM Land Registry,HM Land Registry,08/05/2017,Travel & Subsistence General Duty,Program: Local Land Charges,Redfern Travel Ltd,SME,1180806,433.68,Travel & Subsistence,Administration
HM Land Registry,HM Land Registry,08/05/2017,Travel & Subsistence General Duty,Projects and Programme Centre,Redfern Travel Ltd,SME,1180806,585.90,Travel & Subsistence,Administration
HM Land Registry,HM Land Registry,08/05/2017,Travel & Subsistence General Duty,Property Asset Management Group,Redfern Travel Ltd,SME,1180806,144.22,Travel & Subsistence,Administration
HM Land Registry,HM Land Registry,08/05/2017,Travel & Subsistence General Duty,Research & Data Mining,Redfern Travel Ltd,SME,1180806,260.66,Travel & Subsistence,Administration
HM Land Registry,HM Land Registry,08/05/2017,Travel & Subsistence General Duty,Strategy Team,Redfern Travel Ltd,SME,1180806,"1,313.49",Travel & Subsistence,Administration
HM Land Registry,HM Land Registry,08/05/2017,Travel & Subsistence General Duty,Dir: Finance,Redfern Travel Ltd,SME,1180806,"3,234.84",Travel & Subsistence,Administration
HM Land Registry,HM Land Registry,08/05/2017,Travel & Subsistence Overseas Travel,Independent Complaints Reviewer,Redfern Travel Ltd,SME,1180806,0.60,Travel & Subsistence,Administration
HM Land Registry,HM Land Registry,08/05/2017,Travel & Subsistence General Duty,Registration Legal Services Group,Redfern Travel Ltd,SME,1180806,46.30,Travel & Subsistence,Administration
HM Land Registry,HM Land Registry,08/05/2017,Travel & Subsistence General Duty,HR Strategy & Policy,Redfern Travel Ltd,SME,1180806,164.80,Travel & Subsistence,Administration
HM Land Registry,HM Land Registry,08/05/2017,Travel & Subsistence General Duty,Dir: Information Systems,Redfern Travel Ltd,SME,1180806,87.60,Travel & Subsistence,Administration
HM Land Registry,HM Land Registry,08/05/2017,Travel & Subsistence General Duty,International Business Development,Redfern Travel Ltd,SME,1180806,223.50,Travel & Subsistence,Administration
HM Land Registry,HM Land Registry,08/05/2017,Travel & Subsistence General Duty,Communications Team,Redfern Travel Ltd,SME,1180806,92.50,Travel & Subsistence,Administration
HM Land Registry,HM Land Registry,08/05/2017,Travel & Subsistence General Duty,Diversity,Redfern Travel Ltd,SME,1180806,641.91,Travel & Subsistence,Administration
HM Land Registry,HM Land Registry,08/05/2017,Travel & Subsistence General Duty,Internal Audit,Redfern Travel Ltd,SME,1180806,327.59,Travel & Subsistence,Administration
HM Land Registry,HM Land Registry,08/05/2017,Travel & Subsistence General Duty,Operations Assurance and Risk,Redfern Travel Ltd,SME,1180806,613.13,Travel & Subsistence,Administration
HM Land Registry,HM Land Registry,08/05/2017,Travel & Subsistence General Duty,Local Lawyer Support Group,Redfern Travel Ltd,SME,1180806,302.05,Travel & Subsistence,Administration
HM Land Registry,HM Land Registry,08/05/2017,Travel & Subsistence General Duty,Customer Services,Redfern Travel Ltd,SME,1180806,164.50,Travel & Subsistence,Administration
HM Land Registry,HM Land Registry,09/05/2017,Travel & Subsistence General Duty,Birkenhead Office,Redfern Travel Ltd,SME,1180836,72.60,Travel & Subsistence,Administration
HM Land Registry,HM Land Registry,09/05/2017,Travel & Subsistence General Duty,Business Development,Redfern Travel Ltd,SME,1180836,982.46,Travel & Subsistence,Administration
HM Land Registry,HM Land Registry,09/05/2017,Travel & Subsistence General Duty,Central Facilities Management Team,Redfern Travel Ltd,SME,1180836,"2,308.88",Travel & Subsistence,Administration
HM Land Registry,HM Land Registry,09/05/2017,Travel & Subsistence Dual Workplace,Central Facilities Management Team,Redfern Travel Ltd,SME,1180836,0.60,Travel & Subsistence,Administration
HM Land Registry,HM Land Registry,09/05/2017,Travel & Subsistence General Duty,Central Operations Group,Redfern Travel Ltd,SME,1180836,759.28,Travel & Subsistence,Administration
HM Land Registry,HM Land Registry,09/05/2017,Travel & Subsistence General Duty,Central RFS,Redfern Travel Ltd,SME,1180836,267.00,Travel & Subsistence,Administration
HM Land Registry,HM Land Registry,09/05/2017,Travel & Subsistence General Duty,Chief Executives Office,Redfern Travel Ltd,SME,1180836,687.40,Travel & Subsistence,Administration
HM Land Registry,HM Land Registry,09/05/2017,Travel & Subsistence General Duty,Commercial Director,Redfern Travel Ltd,SME,1180836,471.20,Travel & Subsistence,Administration
HM Land Registry,HM Land Registry,09/05/2017,Travel & Subsistence Dual Workplace,Corp Procurement,Redfern Travel Ltd,SME,1180836,88.70,Travel & Subsistence,Administration
HM Land Registry,HM Land Registry,09/05/2017,Travel & Subsistence General Duty,Corporate Legal Services,Redfern Travel Ltd,SME,1180836,741.35,Travel & Subsistence,Administration
HM Land Registry,HM Land Registry,09/05/2017,Travel & Subsistence Dual Workplace,Corporate Legal Services,Redfern Travel Ltd,SME,1180836,46.00,Travel & Subsistence,Administration
HM Land Registry,HM Land Registry,09/05/2017,Travel & Subsistence General Duty,Coventry Office,Redfern Travel Ltd,SME,1180836,265.60,Travel & Subsistence,Administration
HM Land Registry,HM Land Registry,09/05/2017,Travel & Subsistence General Duty,Croydon Office,Redfern Travel Ltd,SME,1180836,236.30,Travel & Subsistence,Administration
HM Land Registry,HM Land Registry,09/05/2017,Travel & Subsistence General Duty,Data Group,Redfern Travel Ltd,SME,1180836,738.56,Travel & Subsistence,Administration
HM Land Registry,HM Land Registry,09/05/2017,Travel & Subsistence General Duty,Dir: (Statutory) Digital Services,Redfern Travel Ltd,SME,1180836,445.53,Travel & Subsistence,Administration
HM Land Registry,HM Land Registry,09/05/2017,Travel & Subsistence General Duty,Dir: Operations,Redfern Travel Ltd,SME,1180836,463.40,Travel & Subsistence,Administration
HM Land Registry,HM Land Registry,09/05/2017,Travel & Subsistence General Duty,Director of Information Systems,Redfern Travel Ltd,SME,1180836,"4,407.87",Travel & Subsistence,Administration
HM Land Registry,HM Land Registry,09/05/2017,Travel & Subsistence General Duty,Director of Legal Services,Redfern Travel Ltd,SME,1180836,323.60,Travel & Subsistence,Administration
HM Land Registry,HM Land Registry,09/05/2017,Travel & Subsistence Overseas Travel,Director of Legal Services,Redfern Travel Ltd,SME,1180836,"1,237.21",Travel & Subsistence,Administration
HM Land Registry,HM Land Registry,09/05/2017,Travel & Subsistence General Duty,Director of Operations,Redfern Travel Ltd,SME,1180836,588.93,Travel & Subsistence,Administration
HM Land Registry,HM Land Registry,09/05/2017,Travel & Subsistence General Duty,Durham Office,Redfern Travel Ltd,SME,1180836,-302.70,Travel & Subsistence,Administration
HM Land Registry,HM Land Registry,09/05/2017,Travel & Subsistence General Duty,Finance Director,Redfern Travel Ltd,SME,1180836,157.00,Travel & Subsistence,Administration
HM Land Registry,HM Land Registry,09/05/2017,Travel & Subsistence General Duty,Finance Group,Redfern Travel Ltd,SME,1180836,404.40,Travel & Subsistence,Administration
HM Land Registry,HM Land Registry,09/05/2017,Travel & Subsistence General Duty,Forward Scanning,Redfern Travel Ltd,SME,1180836,44.80,Travel & Subsistence,Administration
HM Land Registry,HM Land Registry,09/05/2017,Travel & Subsistence General Duty,Fylde Office,Redfern Travel Ltd,SME,1180836,343.90,Travel & Subsistence,Administration
HM Land Registry,HM Land Registry,09/05/2017,Travel & Subsistence General Duty,Gloucester Office,Redfern Travel Ltd,SME,1180836,239.50,Travel & Subsistence,Administration
HM Land Registry,HM Land Registry,09/05/2017,Travel & Subsistence General Duty,Guarantee & Litigation,Redfern Travel Ltd,SME,1180836,77.30,Travel & Subsistence,Administration
HM Land Registry,HM Land Registry,09/05/2017,Travel & Subsistence General Duty,HR Group,Redfern Travel Ltd,SME,1180836,"3,387.54",Travel & Subsistence,Administration
HM Land Registry,HM Land Registry,09/05/2017,Travel & Subsistence General Duty,Hull Office,Redfern Travel Ltd,SME,1180836,49.70,Travel & Subsistence,Administration
HM Land Registry,HM Land Registry,09/05/2017,Travel & Subsistence General Duty,Leicester Office,Redfern Travel Ltd,SME,1180836,354.00,Travel & Subsistence,Administration
HM Land Registry,HM Land Registry,09/05/2017,Travel & Subsistence General Duty,Local Land Charges,Redfern Travel Ltd,SME,1180836,"2,548.43",Travel & Subsistence,Administration
HM Land Registry,HM Land Registry,09/05/2017,Travel & Subsistence General Duty,Local Lawyer Group,Redfern Travel Ltd,SME,1180836,696.70,Travel & Subsistence,Administration
HM Land Registry,HM Land Registry,09/05/2017,Travel & Subsistence General Duty,Marketing Services Team,Redfern Travel Ltd,SME,1180836,16.20,Travel & Subsistence,Administration
HM Land Registry,HM Land Registry,09/05/2017,Travel & Subsistence General Duty,Nottingham Office,Redfern Travel Ltd,SME,1180836,261.79,Travel & Subsistence,Administration
HM Land Registry,HM Land Registry,09/05/2017,Travel & Subsistence General Duty,Product Development & Management,Redfern Travel Ltd,SME,1180836,"1,890.59",Travel & Subsistence,Administration
HM Land Registry,HM Land Registry,09/05/2017,Travel & Subsistence General Duty,Program: Local Land Charges,Redfern Travel Ltd,SME,1180836,215.90,Travel & Subsistence,Administration
HM Land Registry,HM Land Registry,09/05/2017,Travel & Subsistence General Duty,Projects and Programme Centre,Redfern Travel Ltd,SME,1180836,687.40,Travel & Subsistence,Administration
HM Land Registry,HM Land Registry,09/05/2017,Travel & Subsistence General Duty,Property Asset Management Group,Redfern Travel Ltd,SME,1180836,954.80,Travel & Subsistence,Administration
HM Land Registry,HM Land Registry,09/05/2017,Travel & Subsistence General Duty,Research & Data Mining,Redfern Travel Ltd,SME,1180836,255.50,Travel & Subsistence,Administration
HM Land Registry,HM Land Registry,09/05/2017,Travel & Subsistence General Duty,Strategy Team,Redfern Travel Ltd,SME,1180836,517.70,Travel & Subsistence,Administration
HM Land Registry,HM Land Registry,09/05/2017,Travel & Subsistence General Duty,Wales Office,Redfern Travel Ltd,SME,1180836,133.30,Travel & Subsistence,Administration
HM Land Registry,HM Land Registry,09/05/2017,Travel & Subsistence General Duty,Dir: Finance,Redfern Travel Ltd,SME,1180836,893.70,Travel & Subsistence,Administration
HM Land Registry,HM Land Registry,09/05/2017,Travel & Subsistence General Duty,HR Operations,Redfern Travel Ltd,SME,1180836,171.00,Travel & Subsistence,Administration
HM Land Registry,HM Land Registry,09/05/2017,Travel & Subsistence General Duty,Dir: Information Systems,Redfern Travel Ltd,SME,1180836,274.90,Travel & Subsistence,Administration
HM Land Registry,HM Land Registry,09/05/2017,Travel & Subsistence Overseas Travel,International Relations,Redfern Travel Ltd,SME,1180836,199.23,Travel & Subsistence,Administration
HM Land Registry,HM Land Registry,09/05/2017,Travel & Subsistence General Duty,International Business Development,Redfern Travel Ltd,SME,1180836,382.00,Travel & Subsistence,Administration
HM Land Registry,HM Land Registry,09/05/2017,Travel & Subsistence Overseas Travel,International Business Development,Redfern Travel Ltd,SME,1180836,"1,560.87",Travel & Subsistence,Administration
HM Land Registry,HM Land Registry,09/05/2017,Travel & Subsistence General Duty,Communications Team,Redfern Travel Ltd,SME,1180836,62.70,Travel & Subsistence,Administration
HM Land Registry,HM Land Registry,09/05/2017,Travel & Subsistence General Duty,Diversity,Redfern Travel Ltd,SME,1180836,839.63,Travel & Subsistence,Administration
HM Land Registry,HM Land Registry,09/05/2017,Travel & Subsistence General Duty,Internal Audit,Redfern Travel Ltd,SME,1180836,96.60,Travel & Subsistence,Administration
HM Land Registry,HM Land Registry,09/05/2017,Travel & Subsistence General Duty,Operations Assurance and Risk,Redfern Travel Ltd,SME,1180836,67.80,Travel & Subsistence,Administration
HM Land Registry,HM Land Registry,09/05/2017,Travel & Subsistence General Duty,LR Sports Council,Redfern Travel Ltd,SME,1180836,36.10,Travel & Subsistence,Administration
HM Land Registry,HM Land Registry,09/05/2017,Travel & Subsistence General Duty,Dir: Strategy,Redfern Travel Ltd,SME,1180836,128.50,Travel & Subsistence,Administration
HM Land Registry,HM Land Registry,16/05/2017,Travel & Subsistence General Duty,Birkenhead Office,Redfern Travel Ltd,SME,1181504,64.90,Travel & Subsistence,Administration
HM Land Registry,HM Land Registry,16/05/2017,Travel & Subsistence General Duty,Business Development,Redfern Travel Ltd,SME,1181504,"2,814.36",Travel & Subsistence,Administration
HM Land Registry,HM Land Registry,16/05/2017,Travel & Subsistence General Duty,Central Facilities Management Team,Redfern Travel Ltd,SME,1181504,"1,300.02",Travel & Subsistence,Administration
HM Land Registry,HM Land Registry,16/05/2017,Travel & Subsistence General Duty,Central Operations Group,Redfern Travel Ltd,SME,1181504,"3,050.56",Travel & Subsistence,Administration
HM Land Registry,HM Land Registry,16/05/2017,Travel & Subsistence General Duty,Central RFS,Redfern Travel Ltd,SME,1181504,77.60,Travel & Subsistence,Administration
HM Land Registry,HM Land Registry,16/05/2017,Travel & Subsistence General Duty,Chief Executives Office,Redfern Travel Ltd,SME,1181504,"1,014.48",Travel & Subsistence,Administration
HM Land Registry,HM Land Registry,16/05/2017,Travel & Subsistence General Duty,Commercial & Customer Strategy & Performance,Redfern Travel Ltd,SME,1181504,401.00,Travel & Subsistence,Administration
HM Land Registry,HM Land Registry,16/05/2017,Travel & Subsistence General Duty,Commercial Director,Redfern Travel Ltd,SME,1181504,122.80,Travel & Subsistence,Administration
HM Land Registry,HM Land Registry,16/05/2017,Travel & Subsistence General Duty,Corp Procurement,Redfern Travel Ltd,SME,1181504,604.05,Travel & Subsistence,Administration
HM Land Registry,HM Land Registry,16/05/2017,Travel & Subsistence Dual Workplace,Corp Procurement,Redfern Travel Ltd,SME,1181504,136.60,Travel & Subsistence,Administration
HM Land Registry,HM Land Registry,16/05/2017,Travel & Subsistence General Duty,Corporate Assurance,Redfern Travel Ltd,SME,1181504,141.10,Travel & Subsistence,Administration
HM Land Registry,HM Land Registry,16/05/2017,Travel & Subsistence General Duty,Corporate Legal Services,Redfern Travel Ltd,SME,1181504,379.07,Travel & Subsistence,Administration
HM Land Registry,HM Land Registry,16/05/2017,Travel & Subsistence Dual Workplace,Corporate Legal Services,Redfern Travel Ltd,SME,1181504,68.95,Travel & Subsistence,Administration
HM Land Registry,HM Land Registry,16/05/2017,Travel & Subsistence General Duty,Croydon Office,Redfern Travel Ltd,SME,1181504,367.50,Travel & Subsistence,Administration
HM Land Registry,HM Land Registry,16/05/2017,Travel & Subsistence General Duty,Data Group,Redfern Travel Ltd,SME,1181504,"1,261.90",Travel & Subsistence,Administration
HM Land Registry,HM Land Registry,16/05/2017,Travel & Subsistence General Duty,Dir: (Statutory) Digital Services,Redfern Travel Ltd,SME,1181504,"1,451.07",Travel & Subsistence,Administration
HM Land Registry,HM Land Registry,16/05/2017,Travel & Subsistence General Duty,Dir: Operations,Redfern Travel Ltd,SME,1181504,"1,155.95",Travel & Subsistence,Administration
HM Land Registry,HM Land Registry,16/05/2017,Travel & Subsistence General Duty,Director of Information Systems,Redfern Travel Ltd,SME,1181504,"2,423.74",Travel & Subsistence,Administration
HM Land Registry,HM Land Registry,16/05/2017,Travel & Subsistence General Duty,Director of Legal Services,Redfern Travel Ltd,SME,1181504,510.10,Travel & Subsistence,Administration
HM Land Registry,HM Land Registry,16/05/2017,Travel & Subsistence General Duty,Director of Operations,Redfern Travel Ltd,SME,1181504,292.10,Travel & Subsistence,Administration
HM Land Registry,HM Land Registry,16/05/2017,Travel & Subsistence General Duty,Durham Office,Redfern Travel Ltd,SME,1181504,566.05,Travel & Subsistence,Administration
HM Land Registry,HM Land Registry,16/05/2017,Travel & Subsistence General Duty,Finance Director,Redfern Travel Ltd,SME,1181504,-7.50,Travel & Subsistence,Administration
HM Land Registry,HM Land Registry,16/05/2017,Travel & Subsistence General Duty,Finance Group,Redfern Travel Ltd,SME,1181504,326.63,Travel & Subsistence,Administration
HM Land Registry,HM Land Registry,16/05/2017,Travel & Subsistence General Duty,Fylde Office,Redfern Travel Ltd,SME,1181504,262.90,Travel & Subsistence,Administration
HM Land Registry,HM Land Registry,16/05/2017,Travel & Subsistence General Duty,HR Group,Redfern Travel Ltd,SME,1181504,"2,145.96",Travel & Subsistence,Administration
HM Land Registry,HM Land Registry,16/05/2017,Travel & Subsistence General Duty,Hull Office,Redfern Travel Ltd,SME,1181504,95.80,Travel & Subsistence,Administration
HM Land Registry,HM Land Registry,16/05/2017,Travel & Subsistence General Duty,Leicester Office,Redfern Travel Ltd,SME,1181504,57.60,Travel & Subsistence,Administration
HM Land Registry,HM Land Registry,16/05/2017,Travel & Subsistence General Duty,Local Land Charges,Redfern Travel Ltd,SME,1181504,"4,480.14",Travel & Subsistence,Administration
HM Land Registry,HM Land Registry,16/05/2017,Travel & Subsistence General Duty,Local Lawyer Group,Redfern Travel Ltd,SME,1181504,"2,441.35",Travel & Subsistence,Administration
HM Land Registry,HM Land Registry,16/05/2017,Travel & Subsistence General Duty,Marketing Services Team,Redfern Travel Ltd,SME,1181504,223.10,Travel & Subsistence,Administration
HM Land Registry,HM Land Registry,16/05/2017,Travel & Subsistence General Duty,Nottingham Office,Redfern Travel Ltd,SME,1181504,120.30,Travel & Subsistence,Administration
HM Land Registry,HM Land Registry,16/05/2017,Travel & Subsistence General Duty,Peterborough Office,Redfern Travel Ltd,SME,1181504,164.58,Travel & Subsistence,Administration
HM Land Registry,HM Land Registry,16/05/2017,Travel & Subsistence General Duty,Plymouth Office,Redfern Travel Ltd,SME,1181504,264.10,Travel & Subsistence,Administration
HM Land Registry,HM Land Registry,16/05/2017,Travel & Subsistence General Duty,Product Development & Management,Redfern Travel Ltd,SME,1181504,"1,026.74",Travel & Subsistence,Administration
HM Land Registry,HM Land Registry,16/05/2017,Travel & Subsistence General Duty,Program: Local Land Charges,Redfern Travel Ltd,SME,1181504,"1,015.15",Travel & Subsistence,Administration
HM Land Registry,HM Land Registry,16/05/2017,Travel & Subsistence General Duty,Projects and Programme Centre,Redfern Travel Ltd,SME,1181504,433.73,Travel & Subsistence,Administration
HM Land Registry,HM Land Registry,16/05/2017,Travel & Subsistence General Duty,Property Asset Management Group,Redfern Travel Ltd,SME,1181504,871.90,Travel & Subsistence,Administration
HM Land Registry,HM Land Registry,16/05/2017,Travel & Subsistence General Duty,Research & Data Mining,Redfern Travel Ltd,SME,1181504,398.70,Travel & Subsistence,Administration
HM Land Registry,HM Land Registry,16/05/2017,Travel & Subsistence General Duty,Strategy Team,Redfern Travel Ltd,SME,1181504,"1,518.64",Travel & Subsistence,Administration
HM Land Registry,HM Land Registry,16/05/2017,Travel & Subsistence General Duty,Telford Office,Redfern Travel Ltd,SME,1181504,197.90,Travel & Subsistence,Administration
HM Land Registry,HM Land Registry,16/05/2017,Travel & Subsistence General Duty,Wales Office,Redfern Travel Ltd,SME,1181504,265.70,Travel & Subsistence,Administration
HM Land Registry,HM Land Registry,16/05/2017,Travel & Subsistence General Duty,Dir: Finance,Redfern Travel Ltd,SME,1181504,957.10,Travel & Subsistence,Administration
HM Land Registry,HM Land Registry,16/05/2017,Travel & Subsistence Overseas Travel,International Relations,Redfern Travel Ltd,SME,1181504,2.93,Travel & Subsistence,Administration
HM Land Registry,HM Land Registry,16/05/2017,Travel & Subsistence General Duty,International Business Development,Redfern Travel Ltd,SME,1181504,358.70,Travel & Subsistence,Administration
HM Land Registry,HM Land Registry,16/05/2017,Travel & Subsistence General Duty,Communications Team,Redfern Travel Ltd,SME,1181504,204.89,Travel & Subsistence,Administration
HM Land Registry,HM Land Registry,16/05/2017,Travel & Subsistence General Duty,Diversity,Redfern Travel Ltd,SME,1181504,225.10,Travel & Subsistence,Administration
HM Land Registry,HM Land Registry,16/05/2017,Travel & Subsistence General Duty,Internal Audit,Redfern Travel Ltd,SME,1181504,414.40,Travel & Subsistence,Administration
HM Land Registry,HM Land Registry,16/05/2017,Travel & Subsistence General Duty,Operations Assurance and Risk,Redfern Travel Ltd,SME,1181504,207.20,Travel & Subsistence,Administration
HM Land Registry,HM Land Registry,16/05/2017,Travel & Subsistence General Duty,Local Lawyer Support Group,Redfern Travel Ltd,SME,1181504,299.00,Travel & Subsistence,Administration
HM Land Registry,HM Land Registry,16/05/2017,Travel & Subsistence General Duty,Customer Services,Redfern Travel Ltd,SME,1181504,"1,215.02",Travel & Subsistence,Administration
HM Land Registry,HM Land Registry,16/05/2017,Travel & Subsistence General Duty,Dir: Strategy,Redfern Travel Ltd,SME,1181504,44.10,Travel & Subsistence,Administration
HM Land Registry,HM Land Registry,23/05/2017,Travel & Subsistence General Duty,Business Development,Redfern Travel Ltd,SME,1182107,"1,760.13",Travel & Subsistence,Administration
HM Land Registry,HM Land Registry,23/05/2017,Travel & Subsistence General Duty,Central Facilities Management Team,Redfern Travel Ltd,SME,1182107,"1,490.32",Travel & Subsistence,Administration
HM Land Registry,HM Land Registry,23/05/2017,Travel & Subsistence Dual Workplace,Central Facilities Management Team,Redfern Travel Ltd,SME,1182107,77.60,Travel & Subsistence,Administration
HM Land Registry,HM Land Registry,23/05/2017,Travel & Subsistence General Duty,Central Operations Group,Redfern Travel Ltd,SME,1182107,"2,242.36",Travel & Subsistence,Administration
HM Land Registry,HM Land Registry,23/05/2017,Travel & Subsistence General Duty,Chief Executives Office,Redfern Travel Ltd,SME,1182107,953.95,Travel & Subsistence,Administration
HM Land Registry,HM Land Registry,23/05/2017,Travel & Subsistence General Duty,Commercial Director,Redfern Travel Ltd,SME,1182107,161.20,Travel & Subsistence,Administration
HM Land Registry,HM Land Registry,23/05/2017,Travel & Subsistence General Duty,Corp Procurement,Redfern Travel Ltd,SME,1182107,910.00,Travel & Subsistence,Administration
HM Land Registry,HM Land Registry,23/05/2017,Travel & Subsistence General Duty,Corporate Legal Services,Redfern Travel Ltd,SME,1182107,-281.55,Travel & Subsistence,Administration
HM Land Registry,HM Land Registry,23/05/2017,Travel & Subsistence General Duty,Croydon Office,Redfern Travel Ltd,SME,1182107,24.60,Travel & Subsistence,Administration
HM Land Registry,HM Land Registry,23/05/2017,Travel & Subsistence General Duty,Data Group,Redfern Travel Ltd,SME,1182107,"1,048.30",Travel & Subsistence,Administration
HM Land Registry,HM Land Registry,23/05/2017,Travel & Subsistence General Duty,Dir: (Statutory) Digital Services,Redfern Travel Ltd,SME,1182107,"1,586.13",Travel & Subsistence,Administration
HM Land Registry,HM Land Registry,23/05/2017,Travel & Subsistence General Duty,Dir: Operations,Redfern Travel Ltd,SME,1182107,644.40,Travel & Subsistence,Administration
HM Land Registry,HM Land Registry,23/05/2017,Travel & Subsistence General Duty,Director of Information Systems,Redfern Travel Ltd,SME,1182107,"5,065.88",Travel & Subsistence,Administration
HM Land Registry,HM Land Registry,23/05/2017,Travel & Subsistence General Duty,Director of Legal Services,Redfern Travel Ltd,SME,1182107,458.00,Travel & Subsistence,Administration
HM Land Registry,HM Land Registry,23/05/2017,Travel & Subsistence General Duty,Director of Operations,Redfern Travel Ltd,SME,1182107,235.70,Travel & Subsistence,Administration
HM Land Registry,HM Land Registry,23/05/2017,Travel & Subsistence General Duty,Durham Office,Redfern Travel Ltd,SME,1182107,34.40,Travel & Subsistence,Administration
HM Land Registry,HM Land Registry,23/05/2017,Travel & Subsistence General Duty,Finance Director,Redfern Travel Ltd,SME,1182107,34.80,Travel & Subsistence,Administration
HM Land Registry,HM Land Registry,23/05/2017,Travel & Subsistence General Duty,Finance Group,Redfern Travel Ltd,SME,1182107,215.40,Travel & Subsistence,Administration
HM Land Registry,HM Land Registry,23/05/2017,Travel & Subsistence General Duty,Gloucester Office,Redfern Travel Ltd,SME,1182107,72.40,Travel & Subsistence,Administration
HM Land Registry,HM Land Registry,23/05/2017,Travel & Subsistence General Duty,Guarantee & Litigation,Redfern Travel Ltd,SME,1182107,51.40,Travel & Subsistence,Administration
HM Land Registry,HM Land Registry,23/05/2017,Travel & Subsistence General Duty,HR Group,Redfern Travel Ltd,SME,1182107,"2,713.80",Travel & Subsistence,Administration
HM Land Registry,HM Land Registry,23/05/2017,Travel & Subsistence Overseas Travel,HR Group,Redfern Travel Ltd,SME,1182107,158.30,Travel & Subsistence,Administration
HM Land Registry,HM Land Registry,23/05/2017,Travel & Subsistence General Duty,Hull Office,Redfern Travel Ltd,SME,1182107,192.00,Travel & Subsistence,Administration
HM Land Registry,HM Land Registry,23/05/2017,Travel & Subsistence General Duty,IS Service Delivery,Redfern Travel Ltd,SME,1182107,90.20,Travel & Subsistence,Administration
HM Land Registry,HM Land Registry,23/05/2017,Travel & Subsistence General Duty,Leicester Office,Redfern Travel Ltd,SME,1182107,221.40,Travel & Subsistence,Administration
HM Land Registry,HM Land Registry,23/05/2017,Travel & Subsistence General Duty,Local Land Charges,Redfern Travel Ltd,SME,1182107,"4,795.99",Travel & Subsistence,Administration
HM Land Registry,HM Land Registry,23/05/2017,Travel & Subsistence General Duty,Local Lawyer Group,Redfern Travel Ltd,SME,1182107,"2,308.40",Travel & Subsistence,Administration
HM Land Registry,HM Land Registry,23/05/2017,Travel & Subsistence General Duty,LR Board & Board Chair,Redfern Travel Ltd,SME,1182107,241.15,Travel & Subsistence,Administration
HM Land Registry,HM Land Registry,23/05/2017,Travel & Subsistence General Duty,Marketing Services Team,Redfern Travel Ltd,SME,1182107,158.35,Travel & Subsistence,Administration
HM Land Registry,HM Land Registry,23/05/2017,Travel & Subsistence General Duty,Nottingham Office,Redfern Travel Ltd,SME,1182107,144.60,Travel & Subsistence,Administration
HM Land Registry,HM Land Registry,23/05/2017,Travel & Subsistence General Duty,Peterborough Office,Redfern Travel Ltd,SME,1182107,75.30,Travel & Subsistence,Administration
HM Land Registry,HM Land Registry,23/05/2017,Travel & Subsistence General Duty,Product Development & Management,Redfern Travel Ltd,SME,1182107,"1,145.90",Travel & Subsistence,Administration
HM Land Registry,HM Land Registry,23/05/2017,Travel & Subsistence Overseas Travel,Product Development & Management,Redfern Travel Ltd,SME,1182107,167.30,Travel & Subsistence,Administration
HM Land Registry,HM Land Registry,23/05/2017,Travel & Subsistence General Duty,Program: Local Land Charges,Redfern Travel Ltd,SME,1182107,"1,099.77",Travel & Subsistence,Administration
HM Land Registry,HM Land Registry,23/05/2017,Travel & Subsistence General Duty,Projects and Programme Centre,Redfern Travel Ltd,SME,1182107,365.30,Travel & Subsistence,Administration
HM Land Registry,HM Land Registry,23/05/2017,Travel & Subsistence General Duty,Property Asset Management Group,Redfern Travel Ltd,SME,1182107,539.10,Travel & Subsistence,Administration
HM Land Registry,HM Land Registry,23/05/2017,Travel & Subsistence General Duty,Research & Data Mining,Redfern Travel Ltd,SME,1182107,251.30,Travel & Subsistence,Administration
HM Land Registry,HM Land Registry,23/05/2017,Travel & Subsistence General Duty,Strategy Team,Redfern Travel Ltd,SME,1182107,"1,055.90",Travel & Subsistence,Administration
HM Land Registry,HM Land Registry,23/05/2017,Travel & Subsistence General Duty,Telford Office,Redfern Travel Ltd,SME,1182107,58.90,Travel & Subsistence,Administration
HM Land Registry,HM Land Registry,23/05/2017,Travel & Subsistence General Duty,Dir: Finance,Redfern Travel Ltd,SME,1182107,"1,999.10",Travel & Subsistence,Administration
HM Land Registry,HM Land Registry,23/05/2017,Travel & Subsistence General Duty,HR Operations,Redfern Travel Ltd,SME,1182107,191.30,Travel & Subsistence,Administration
HM Land Registry,HM Land Registry,23/05/2017,Travel & Subsistence Overseas Travel,Independent Complaints Reviewer,Redfern Travel Ltd,SME,1182107,78.74,Travel & Subsistence,Administration
HM Land Registry,HM Land Registry,23/05/2017,Travel & Subsistence General Duty,HR Strategy & Policy,Redfern Travel Ltd,SME,1182107,159.10,Travel & Subsistence,Administration
HM Land Registry,HM Land Registry,23/05/2017,Travel & Subsistence General Duty,International Business Development,Redfern Travel Ltd,SME,1182107,363.10,Travel & Subsistence,Administration
HM Land Registry,HM Land Registry,23/05/2017,Travel & Subsistence General Duty,Communications Team,Redfern Travel Ltd,SME,1182107,310.00,Travel & Subsistence,Administration
HM Land Registry,HM Land Registry,23/05/2017,Travel & Subsistence General Duty,Internal Audit,Redfern Travel Ltd,SME,1182107,721.00,Travel & Subsistence,Administration
HM Land Registry,HM Land Registry,23/05/2017,Travel & Subsistence General Duty,Operations Assurance and Risk,Redfern Travel Ltd,SME,1182107,79.33,Travel & Subsistence,Administration
HM Land Registry,HM Land Registry,23/05/2017,Travel & Subsistence General Duty,Local Lawyer Support Group,Redfern Travel Ltd,SME,1182107,90.60,Travel & Subsistence,Administration
HM Land Registry,HM Land Registry,23/05/2017,Travel & Subsistence General Duty,Customer Services,Redfern Travel Ltd,SME,1182107,524.10,Travel & Subsistence,Administration
HM Land Registry,HM Land Registry,23/05/2017,Travel & Subsistence General Duty,LR Sports Council,Redfern Travel Ltd,SME,1182107,525.00,Travel & Subsistence,Administration
HM Land Registry,HM Land Registry,23/05/2017,Travel & Subsistence General Duty,Dir: Strategy,Redfern Travel Ltd,SME,1182107,288.06,Travel & Subsistence,Administration
HM Land Registry,HM Land Registry,23/05/2017,Travel & Subsistence General Duty,Commercial Services Income,Redfern Travel Ltd,SME,1182107,19.60,Travel & Subsistence,Administration
HM Land Registry,HM Land Registry,31/05/2017,Travel & Subsistence General Duty,Birkenhead Office,Redfern Travel Ltd,SME,1182820,0.60,Travel & Subsistence,Administration
HM Land Registry,HM Land Registry,31/05/2017,Travel & Subsistence General Duty,Business Development,Redfern Travel Ltd,SME,1182820,684.24,Travel & Subsistence,Administration
HM Land Registry,HM Land Registry,31/05/2017,Travel & Subsistence General Duty,Central Facilities Management Team,Redfern Travel Ltd,SME,1182820,"1,285.35",Travel & Subsistence,Administration
HM Land Registry,HM Land Registry,31/05/2017,Travel & Subsistence General Duty,Central Operations Group,Redfern Travel Ltd,SME,1182820,"1,247.99",Travel & Subsistence,Administration
HM Land Registry,HM Land Registry,31/05/2017,Travel & Subsistence General Duty,Chief Executives Office,Redfern Travel Ltd,SME,1182820,906.55,Travel & Subsistence,Administration
HM Land Registry,HM Land Registry,31/05/2017,Travel & Subsistence General Duty,Commercial Director,Redfern Travel Ltd,SME,1182820,42.10,Travel & Subsistence,Administration
HM Land Registry,HM Land Registry,31/05/2017,Travel & Subsistence General Duty,Corp Procurement,Redfern Travel Ltd,SME,1182820,279.60,Travel & Subsistence,Administration
HM Land Registry,HM Land Registry,31/05/2017,Travel & Subsistence Dual Workplace,Corp Procurement,Redfern Travel Ltd,SME,1182820,136.60,Travel & Subsistence,Administration
HM Land Registry,HM Land Registry,31/05/2017,Travel & Subsistence General Duty,Corporate Assurance,Redfern Travel Ltd,SME,1182820,249.30,Travel & Subsistence,Administration
HM Land Registry,HM Land Registry,31/05/2017,Travel & Subsistence General Duty,Corporate Legal Services,Redfern Travel Ltd,SME,1182820,"1,585.60",Travel & Subsistence,Administration
HM Land Registry,HM Land Registry,31/05/2017,Travel & Subsistence General Duty,Coventry Office,Redfern Travel Ltd,SME,1182820,165.10,Travel & Subsistence,Administration
HM Land Registry,HM Land Registry,31/05/2017,Travel & Subsistence General Duty,Data Group,Redfern Travel Ltd,SME,1182820,909.70,Travel & Subsistence,Administration
HM Land Registry,HM Land Registry,31/05/2017,Travel & Subsistence General Duty,Dir: (Statutory) Digital Services,Redfern Travel Ltd,SME,1182820,"1,125.65",Travel & Subsistence,Administration
HM Land Registry,HM Land Registry,31/05/2017,Travel & Subsistence General Duty,Dir: Operations,Redfern Travel Ltd,SME,1182820,275.10,Travel & Subsistence,Administration
HM Land Registry,HM Land Registry,31/05/2017,Travel & Subsistence General Duty,Director of Information Systems,Redfern Travel Ltd,SME,1182820,"2,684.97",Travel & Subsistence,Administration
HM Land Registry,HM Land Registry,31/05/2017,Travel & Subsistence General Duty,Director of Legal Services,Redfern Travel Ltd,SME,1182820,-29.30,Travel & Subsistence,Administration
HM Land Registry,HM Land Registry,31/05/2017,Travel & Subsistence General Duty,Director of Operations,Redfern Travel Ltd,SME,1182820,195.60,Travel & Subsistence,Administration
HM Land Registry,HM Land Registry,31/05/2017,Travel & Subsistence General Duty,Durham Office,Redfern Travel Ltd,SME,1182820,243.95,Travel & Subsistence,Administration
HM Land Registry,HM Land Registry,31/05/2017,Travel & Subsistence General Duty,Finance Director,Redfern Travel Ltd,SME,1182820,-25.00,Travel & Subsistence,Administration
HM Land Registry,HM Land Registry,31/05/2017,Travel & Subsistence General Duty,Finance Group,Redfern Travel Ltd,SME,1182820,364.10,Travel & Subsistence,Administration
HM Land Registry,HM Land Registry,31/05/2017,Travel & Subsistence General Duty,Guarantee & Litigation,Redfern Travel Ltd,SME,1182820,-94.40,Travel & Subsistence,Administration
HM Land Registry,HM Land Registry,31/05/2017,Travel & Subsistence General Duty,HR Group,Redfern Travel Ltd,SME,1182820,"1,416.48",Travel & Subsistence,Administration
HM Land Registry,HM Land Registry,31/05/2017,Travel & Subsistence General Duty,Leicester Office,Redfern Travel Ltd,SME,1182820,23.00,Travel & Subsistence,Administration
HM Land Registry,HM Land Registry,31/05/2017,Travel & Subsistence General Duty,Local Land Charges,Redfern Travel Ltd,SME,1182820,"3,019.84",Travel & Subsistence,Administration
HM Land Registry,HM Land Registry,31/05/2017,Travel & Subsistence General Duty,Local Lawyer Group,Redfern Travel Ltd,SME,1182820,754.92,Travel & Subsistence,Administration
HM Land Registry,HM Land Registry,31/05/2017,Travel & Subsistence General Duty,Marketing Services Team,Redfern Travel Ltd,SME,1182820,78.10,Travel & Subsistence,Administration
HM Land Registry,HM Land Registry,31/05/2017,Travel & Subsistence General Duty,Nottingham Office,Redfern Travel Ltd,SME,1182820,144.60,Travel & Subsistence,Administration
HM Land Registry,HM Land Registry,31/05/2017,Travel & Subsistence General Duty,Peterborough Office,Redfern Travel Ltd,SME,1182820,154.19,Travel & Subsistence,Administration
HM Land Registry,HM Land Registry,31/05/2017,Travel & Subsistence General Duty,Product Development & Management,Redfern Travel Ltd,SME,1182820,"1,199.04",Travel & Subsistence,Administration
HM Land Registry,HM Land Registry,31/05/2017,Travel & Subsistence General Duty,Program: Local Land Charges,Redfern Travel Ltd,SME,1182820,667.45,Travel & Subsistence,Administration
HM Land Registry,HM Land Registry,31/05/2017,Travel & Subsistence General Duty,Projects and Programme Centre,Redfern Travel Ltd,SME,1182820,424.10,Travel & Subsistence,Administration
HM Land Registry,HM Land Registry,31/05/2017,Travel & Subsistence General Duty,Property Asset Management Group,Redfern Travel Ltd,SME,1182820,476.90,Travel & Subsistence,Administration
HM Land Registry,HM Land Registry,31/05/2017,Travel & Subsistence General Duty,Research & Data Mining,Redfern Travel Ltd,SME,1182820,26.50,Travel & Subsistence,Administration
HM Land Registry,HM Land Registry,31/05/2017,Travel & Subsistence General Duty,Strategy Team,Redfern Travel Ltd,SME,1182820,"1,463.89",Travel & Subsistence,Administration
HM Land Registry,HM Land Registry,31/05/2017,Travel & Subsistence General Duty,Wales Office,Redfern Travel Ltd,SME,1182820,70.59,Travel & Subsistence,Administration
HM Land Registry,HM Land Registry,31/05/2017,Travel & Subsistence General Duty,Dir: Finance,Redfern Travel Ltd,SME,1182820,"2,183.74",Travel & Subsistence,Administration
HM Land Registry,HM Land Registry,31/05/2017,Travel & Subsistence General Duty,HR Operations,Redfern Travel Ltd,SME,1182820,-186.40,Travel & Subsistence,Administration
HM Land Registry,HM Land Registry,31/05/2017,Travel & Subsistence General Duty,Registration Legal Services Group,Redfern Travel Ltd,SME,1182820,181.00,Travel & Subsistence,Administration
HM Land Registry,HM Land Registry,31/05/2017,Travel & Subsistence General Duty,International Relations,Redfern Travel Ltd,SME,1182820,8.10,Travel & Subsistence,Administration
HM Land Registry,HM Land Registry,31/05/2017,Travel & Subsistence Overseas Travel,International Relations,Redfern Travel Ltd,SME,1182820,123.73,Travel & Subsistence,Administration
HM Land Registry,HM Land Registry,31/05/2017,Travel & Subsistence General Duty,International Business Development,Redfern Travel Ltd,SME,1182820,367.45,Travel & Subsistence,Administration
HM Land Registry,HM Land Registry,31/05/2017,Travel & Subsistence General Duty,Communications Team,Redfern Travel Ltd,SME,1182820,236.80,Travel & Subsistence,Administration
HM Land Registry,HM Land Registry,31/05/2017,Travel & Subsistence General Duty,Internal Audit,Redfern Travel Ltd,SME,1182820,95.03,Travel & Subsistence,Administration
HM Land Registry,HM Land Registry,31/05/2017,Travel & Subsistence General Duty,Operations Assurance and Risk,Redfern Travel Ltd,SME,1182820,419.00,Travel & Subsistence,Administration
HM Land Registry,HM Land Registry,31/05/2017,Travel & Subsistence General Duty,Local Lawyer Support Group,Redfern Travel Ltd,SME,1182820,74.60,Travel & Subsistence,Administration
HM Land Registry,HM Land Registry,31/05/2017,Travel & Subsistence General Duty,Customer Services,Redfern Travel Ltd,SME,1182820,308.25,Travel & Subsistence,Administration
HM Land Registry,HM Land Registry,31/05/2017,Travel & Subsistence General Duty,Dir: Legal Services,Redfern Travel Ltd,SME,1182820,133.80,Travel & Subsistence,Administration
HM Land Registry,HM Land Registry,09/05/2017,Letter Post,Birkenhead Office,Royal Mail,Large,1180902,"1,450.69",Letter Post,Administration
HM Land Registry,HM Land Registry,09/05/2017,Letter Post,Coventry Office,Royal Mail,Large,1180902,"1,301.83",Letter Post,Administration
HM Land Registry,HM Land Registry,09/05/2017,Letter Post,Croydon Office,Royal Mail,Large,1180902,"17,138.70",Letter Post,Administration
HM Land Registry,HM Land Registry,09/05/2017,Letter Post,Durham Office,Royal Mail,Large,1180902,"4,308.10",Letter Post,Administration
HM Land Registry,HM Land Registry,09/05/2017,Letter Post,Fylde Office,Royal Mail,Large,1180902,"2,017.11",Letter Post,Administration
HM Land Registry,HM Land Registry,09/05/2017,Letter Post,Gloucester Office,Royal Mail,Large,1180902,"1,504.51",Letter Post,Administration
HM Land Registry,HM Land Registry,09/05/2017,Letter Post,Hull Office,Royal Mail,Large,1180902,"2,064.49",Letter Post,Administration
HM Land Registry,HM Land Registry,09/05/2017,Letter Post,IS Service Delivery,Royal Mail,Large,1180902,"17,713.31",Letter Post,Administration
HM Land Registry,HM Land Registry,09/05/2017,Letter Post,Land Charges,Royal Mail,Large,1180902,13.00,Letter Post,Administration
HM Land Registry,HM Land Registry,09/05/2017,Letter Post,Leicester Office,Royal Mail,Large,1180902,"1,481.54",Letter Post,Administration
HM Land Registry,HM Land Registry,09/05/2017,Letter Post,Nottingham Office,Royal Mail,Large,1180902,"1,973.86",Letter Post,Administration
HM Land Registry,HM Land Registry,09/05/2017,Letter Post,Peterborough Office,Royal Mail,Large,1180902,"1,571.08",Letter Post,Administration
HM Land Registry,HM Land Registry,09/05/2017,Letter Post,Plymouth Office,Royal Mail,Large,1180902,"2,882.19",Letter Post,Administration
HM Land Registry,HM Land Registry,09/05/2017,Letter Post,Telford Office,Royal Mail,Large,1180902,720.95,Letter Post,Administration
HM Land Registry,HM Land Registry,09/05/2017,Letter Post,Wales Office,Royal Mail,Large,1180902,"12,012.30",Letter Post,Administration
HM Land Registry,HM Land Registry,09/05/2017,Letter Post,Weymouth Office,Royal Mail,Large,1180902,"1,345.36",Letter Post,Administration
HM Land Registry,HM Land Registry,30/05/2017,Rates Payable,Director of Information Systems,South Hams District Council,Large,1175825,"7,837.00",Rates Payable,Administration
HM Land Registry,HM Land Registry,30/05/2017,Rates Payable,Director of Information Systems,South Hams District Council,Large,1175824,"4,503.00",Rates Payable,Administration
HM Land Registry,HM Land Registry,09/05/2017,Computer Equipment Non HP Licences,IS Service Delivery,Specialist Computer Centres Plc - SCC,Large,1180738,"27,734.61",Computer Equipment Non HP Licences,Administration
HM Land Registry,HM Land Registry,30/05/2017,Rates Payable,Telford Office,Telford & Wrekin Council,Large,1176072,"26,106.00",Rates Payable,Administration
HM Land Registry,HM Land Registry,30/05/2017,Rates Payable,Gloucester Computer Centre,Tewkesbury Borough Council,Large,1174831,"11,615.00",Rates Payable,Administration
HM Land Registry,HM Land Registry,05/05/2017,RFS Outsourced Services,Central RFS,TNT (UK) Ltd,Large,1179111,"192,043.17",Regional File Store Outsourced Services,Administration
HM Land Registry,HM Land Registry,18/05/2017,RFS Outsourced Services,Central RFS,TNT (UK) Ltd,Large,1181487,"84,060.53",Regional File Store Outsourced Services,Administration
HM Land Registry,HM Land Registry,18/05/2017,RFS Outsourced Services,Central RFS,TNT (UK) Ltd,Large,1181488,"192,043.16",Regional File Store Outsourced Services,Administration
HM Land Registry,HM Land Registry,24/05/2017,Provision for Trafalgar House Croydon,Balance Sheet,TNT (UK) Ltd,Large,1182425,"125,000.00",Provision for Trafalgar House Croydon,Administration
HM Land Registry,HM Land Registry,24/05/2017,Lease Expenses Acquisition & Disposal,Property Asset Management Group,TNT (UK) Ltd,Large,1182425,"6,903.13",Lease Expenses Acquisition & Disposal,Administration
HM Land Registry,HM Land Registry,05/05/2017,Rates Payable,Weymouth Office,West Dorset District Council,Large,1176979,"4,934.00",Rates Payable,Administration
HM Land Registry,HM Land Registry,05/05/2017,Rates Payable,Weymouth Office,West Dorset District Council,Large,1176980,"5,221.00",Rates Payable,Administration
HM Land Registry,HM Land Registry,02/05/2017,Rates Payable,Birkenhead Office,Wirral Council,Large,1176876,"27,484.00",Rates Payable,Administration
HM Land Registry,HM Land Registry,08/05/2017,Maps & Plans Data Migration,Forward Scanning,Xerox (UK) Ltd,Large,1180667,"114,674.49",Maps & Plans Data Migration,Administration
HM Land Registry,HM Land Registry,22/05/2017,Maps & Plans Data Migration,Forward Scanning,Xerox (UK) Ltd,Large,1180693,"101,546.77",Maps & Plans Data Migration,Administration
